Cogmind - Beta 14 --- EXPLORER MODE // 2024.10.27 @ 21:32:41 Player: mrjoebobfred Result: Establishing Free Derelict Territories! Performance ------------- Evolutions (9) 4500 Regions Visited (42) 8400 Robots Destroyed (1109) 5545 Value Destroyed (68367) 68367 Prototype IDs (226) 4520 Alien Tech Used (20) 4000 Bonus (59644) 59644 TOTAL SCORE: 154976 Bonus ------- High Alert Combat Kills 11691 Follower Combat Kills 8311 Entered Garrisons 1600 Entered DSFs 500 Met Data Miner 300 Acquired ECA 300 Met Warlord at Base 500 MAIN.C Attacked Warlord 500 Warlord Defense Kills 2750 Found Hidden Lab 3000 Hacked Protovariant 500 Met Warlord at Research 2000 Scanned by Researcher 1000 Pursued by Intercept 3000 Destroyed MAIN.C Guards 500 Met MAIN.C 5000 Destroyed MAIN.C Shell 5000 Destroyed MAIN.C 10000 Met Warlord at Command 2000 Win 3000 Friendly Fire -1808 Cogmind --------- Core Integrity 1154/1600 Matter 255/425 Energy 881/1600 System Corruption 0% Temperature Cool (0) Movement Treading (160) Location Free Derelict Territories Parts ------- > --- POWER (3) -------- Singularity Reactor > --- PROPULSION (6) --- Advanced Heavy Siege Treads Advanced Heavy Siege Treads Advanced Heavy Siege Treads > --- UTILITY (15) ----- Huge Storage Unit Advanced Target Analyzer Experimental Core Analyzer Improved Armor Integrity Analyzer Advanced Particle Accelerator Quantum Capacitor Experimental Powered Armor Experimental Focal Shield Thermal Barrier Advanced Hardlight Generator Phase Redirector Advanced Hacking Suite Deep Network Scanner Ghost Barrier > --- WEAPON (2) ------- Sigix Shearcannon > --- INVENTORY (25) --- Tactical Coordination Suite Precision Energy Filter Advanced Transmission Jammer Advanced Powered Armor Advanced EM Disruption Field Antimissile System Microwarp Drive Sigix Sheargun Sigix Sheargun Sigix Sheargun Compact HERF Cannon Potential Cannon Core Cannon Guided Remote Datajack Peak State ------------ > --- POWER ------------ Singularity Reactor > --- PROPULSION ------- Advanced Heavy Siege Treads Advanced Heavy Siege Treads Advanced Heavy Siege Treads > --- UTILITY ---------- Huge Storage Unit Advanced Target Analyzer Experimental Core Analyzer Improved Armor Integrity Analyzer Advanced Particle Accelerator Quantum Capacitor Advanced Transmission Jammer Experimental Powered Armor Experimental Focal Shield Thermal Barrier Advanced Hardlight Generator Advanced Hacking Suite Deep Network Scanner Ghost Barrier > --- WEAPON ----------- Sigix Shearcannon > --- INVENTORY -------- Tactical Coordination Suite Precision Energy Filter Advanced Powered Armor SHELL Armor Advanced EM Disruption Field Phase Redirector Antimissile System Advanced Hacking Suite Transdimensional Reconstructor Transdimensional Reconstructor High-powered Transdimensional Reconstructor Microwarp Drive Sigix Sheargun Sigix Sheargun Sigix Sheargun Compact HERF Cannon Potential Cannon Core Cannon Containment Facilitator Guided Remote Datajack [Rating: 255] Favorites ----------- Power F-cell Engine Engine F-cell Engine Power Core Light Nuclear Core Reactor Vortex Chain Reactor Propulsion Advanced Heavy Siege Treads Treads Advanced Heavy Siege Treads Utility Huge Storage Unit Device Improved Hardlight Generator Storage Huge Storage Unit Processor Core Analyzer Hackware Advanced Hacking Suite Protection Medium Reactive Plating Artifact Core Physics Calibrator Weapon Enhanced Coil Gun Energy Gun Sigix Sheargun Energy Cannon Compact HERF Cannon Ballistic Gun Enhanced Coil Gun Ballistic Cannon Heavy Linear Accelerator Launcher Vortex Catalyst Activator Special Weapon Guided Remote Datajack Impact Weapon Shock Maul Slashing Weapon Sigix Broadsword Piercing Weapon Heavy Pick Special Melee Weapon Improved Datajack Build | -11 -10 -10 -10 -9 -8 -8 -8 -8 -8 -8 -7 -7 -7 -7 -7 -7 -6 -6 -6 -6 -6 -6 -6 -6 -5 -5 -5 -5 -5 -4 -4 -4 -4 -3 -3 -3 -3 -2 -2 -2 -1 -1 ------- Run | Yrd Mat Min Exi Min Mat Gar Mat Gar Mat Gar Fac Gar Fac Gar Fac DSF Fac Was Fac Gar Fac Low Low Dat Pro Fac Upp Upp War Pro Fac Arm Lab Res Qua Sec Gar Res Tes Gar Acc Com Slots Evolved 18 | . 1 . . . 4 . . . . . 2 . . . . . 2 . . . . . . . . 2 . . . . 2 . . 2 . . . 2 . . 1 . Power 2 | . . . . . . . . . . . 1 . . . . . . . . . . . . . . . . . . . . . . . . . . 1 . . . . Propulsion 3 | . . . . . 1 . . . . . 1 . . . . . . . . . . . . . . 2 . . . . . . . . . . . -1 . . . . Utility 13 | . . . . . 3 . . . . . . . . . . . 2 . . . . . . . . . . . . . 2 . . 2 . . . 3 . . 1 . Weapon . | . 1 . . . . . . . . . . . . . . . . . . . . . . . . . . . . . . . . . . . . -1 . . . . Parts Attached 856 | 6 7 . . 1 8 13 20 2 4 17 69 8 61 30 3 12 73 5 48 6 28 4 1 3 7 19 . 4 13 4 64 49 11 26 47 75 11 16 41 9 15 16 Power 19 | 1 1 . . 1 . 1 1 . 1 . 4 . 1 . . . 2 1 . . . . . . . . . . 1 . . . . . 2 . . 1 1 . . . Engine 10 | 1 . . . 1 . 1 1 . 1 . 4 . . . . . 1 . . . . . . . . . . . . . . . . . . . . . . . . . Core 1 | . 1 . . . . . . . . . . . . . . . . . . . . . . . . . . . . . . . . . . . . . . . . . Reactor 8 | . . . . . . . . . . . . . 1 . . . 1 1 . . . . . . . . . . 1 . . . . . 2 . . 1 1 . . . Propulsion 40 | 2 . . . . 1 . 4 . 2 . 11 . 3 . . . 4 . . . . . . . . 4 . . . . 2 4 . . . . . 2 1 . . . Treads 40 | 2 . . . . 1 . 4 . 2 . 11 . 3 . . . 4 . . . . . . . . 4 . . . . 2 4 . . . . . 2 1 . . . Leg . | . . . . . . . . . . . . . . . . . . . . . . . . . . . . . . . . . . . . . . . . . . . Wheel . | . . . . . . . . . . . . . . . . . . . . . . . . . . . . . . . . . . . . . . . . . . . Hover . | . . . . . . . . . . . . . . . . . . . . . . . . . . . . . . . . . . . . . . . . . . . Flight . | . . . . . . . . . . . . . . . . . . . . . . . . . . . . . . . . . . . . . . . . . . . Utility 607 | 2 . . . . 4 8 10 . 1 3 50 4 52 17 3 12 63 2 41 4 28 4 1 1 7 13 . 4 5 4 54 34 6 24 35 58 4 8 21 7 6 7 Device 499 | . . . . . 2 5 10 . . 2 35 3 41 14 2 11 48 2 32 2 16 3 1 1 7 11 . 4 4 4 51 31 4 21 32 56 3 5 19 7 5 5 Storage 3 | 1 . . . . . 1 . . . . 1 . . . . . . . . . . . . . . . . . . . . . . . . . . . . . . . Processor 18 | . . . . . . . . . . . 2 . 3 2 . . 3 . 1 . . 1 . . . . . . 1 . . . . . 2 . . 2 . . 1 . Hackware 42 | . . . . . . . . . . . 7 . 4 . . . 8 . 6 . 10 . . . . . . . . . 2 2 . 2 . . . . 1 . . . Protection 40 | 1 . . . . 2 2 . . 1 1 5 1 4 1 1 1 4 . 2 2 2 . . . . 2 . . . . 1 1 2 1 . 1 . 1 1 . . . Artifact 5 | . . . . . . . . . . . . . . . . . . . . . . . . . . . . . . . . . . . 1 1 1 . . . . 2 Weapon 190 | 1 6 . . . 3 4 5 2 . 14 4 4 5 13 . . 4 2 7 2 . . . 2 . 2 . . 7 . 8 11 5 2 10 17 7 5 18 2 9 9 Energy Gun 16 | . . . . . . . . . . . . . . . . . . . . . . . . . . . . . . . . . 1 . . 4 . 1 6 1 3 . Energy Cannon 55 | . . . . . . . . . . . . . . . . . . . . . . . . . . . . . . . 3 5 1 2 5 10 5 3 8 . 6 7 Ballistic Gun 65 | 1 5 . . . 3 2 4 1 . 9 4 2 3 6 . . 2 2 5 1 . . . 1 . 1 . . 4 . 5 4 . . . . . . . . . . Ballistic Cannon 4 | . 1 . . . . . . . . . . . . . . . . . . . . . . . . . . . . . . 1 1 . 1 . . . . . . . Launcher 7 | . . . . . . . . . . . . . . . . . . . 2 1 . . . . . . . . 2 . . . 1 . . . . . . . . 1 Special Weapon 22 | . . . . . . . . . . . . . . 3 . . 1 . . . . . . . . 1 . . . . . 1 1 . 3 3 2 1 4 1 . 1 Impact Weapon 2 | . . . . . . . . . . . . . 1 . . . 1 . . . . . . . . . . . . . . . . . . . . . . . . . Slashing Weapon 1 | . . . . . . . . . . . . . . . . . . . . . . . . . . . . . . . . . . . 1 . . . . . . . Piercing Weapon 2 | . . . . . . . . . . . . . . . . . . . . . . . . 1 . . . . 1 . . . . . . . . . . . . . Special Melee Weapon 16 | . . . . . . 2 1 1 . 5 . 2 1 4 . . . . . . . . . . . . . . . . . . . . . . . . . . . . Unidentified Prototypes 13 | . . . . . . . . . . . . . . . . . . . . . . . . . . . . . 3 . . . . . 4 2 . . 4 . . . Parts Lost 8 | . . . . . . 1 . . . . . . . 1 . . . 1 . . 1 . . . . . . . . . . 1 1 . . 1 . 1 . . . . Power 2 | . . . . . . 1 . . . . . . . . . . . 1 . . . . . . . . . . . . . . . . . . . . . . . . Propulsion . | . . . . . . . . . . . . . . . . . . . . . . . . . . . . . . . . . . . . . . . . . . . Utility 5 | . . . . . . . . . . . . . . 1 . . . . . . 1 . . . . . . . . . . . 1 . . 1 . 1 . . . . Weapon 1 | . . . . . . . . . . . . . . . . . . . . . . . . . . . . . . . . 1 . . . . . . . . . . Highest Loss Streak 1 | . . . . . . 1 . . . . . . . 1 . . . 1 . . 1 . . . . . . . . . . 1 1 . . 1 . 1 . . . . To Critical Strikes 1 | . . . . . . . . . . . . . . . . . . . . . . . . . . . . . . . . 1 . . . . . . . . . . Average Slot Usage (%) 87 | . 99 100 100 100 98 99 99 100 98 91 95 100 100 100 100 100 91 84 86 87 85 87 87 87 87 81 77 77 74 72 75 79 72 69 69 68 68 79 78 76 75 75 Engine 5 | . 1 . . 8 8 7 8 8 6 8 13 14 10 7 7 7 6 6 6 6 6 6 6 6 6 5 5 5 2 . . . . . . . . . . . . . Reactor 3 | . . . . . . . . . . . . . 3 7 7 7 5 4 6 6 6 6 6 6 6 5 5 5 5 5 5 5 5 4 4 4 4 7 6 4 3 3 Treads 19 | . 25 25 25 25 25 25 25 25 25 25 27 28 28 28 28 28 16 12 12 12 12 12 12 12 12 17 16 16 16 16 15 15 15 13 13 13 13 11 12 12 11 11 Device 15 | . . . . . 14 22 24 25 25 16 9 14 11 13 14 12 12 12 14 18 14 18 18 18 18 14 22 22 21 16 16 17 15 16 17 20 25 23 24 24 23 22 Storage 6 | . 12 12 12 12 8 8 8 8 8 8 7 7 7 7 7 7 6 6 6 6 6 6 6 6 6 5 5 5 5 5 5 5 5 4 4 4 4 4 4 4 3 3 Processor 4 | . . . . . . . . . . . . 7 6 14 14 14 12 25 7 6 6 6 6 6 6 2 . . . 5 4 . . . 3 4 4 7 8 8 9 11 Hackware 7 | . . . . . . . . . . . 8 . 9 . . . 9 . 12 6 11 12 12 12 12 9 . . . . 9 17 16 17 13 11 8 8 11 12 11 11 Protection 4 | . 12 12 12 12 16 10 8 8 8 8 6 7 1 . . 1 . . 1 5 2 . . . . 2 5 5 5 5 5 5 5 4 4 2 . 3 4 4 3 3 Energy Cannon 1 | . . . . . . . . . . . . . . . . . . . . . . . . . . . . . . . . 4 3 8 7 7 7 3 3 4 2 2 Ballistic Gun 16 | . 36 37 37 37 24 24 24 24 25 24 20 20 20 17 21 21 17 17 17 18 18 18 18 15 18 15 16 16 15 16 14 10 . . . . . . . . . . Peak Build Rating 255 | 6 14 14 14 16 32 39 46 45 49 56 73 73 81 80 77 80 101 97 106 106 106 106 105 106 104 124 121 125 139 135 161 174 180 204 217 224 222 249 249 239 255 253 Average Rating 111 | 4 10 14 14 15 29 37 43 44 46 52 62 72 73 76 75 75 92 94 101 103 100 104 103 103 103 116 121 119 127 134 149 165 172 198 205 209 213 239 233 237 245 245 On Entrance 108 | . 6 14 14 14 16 32 39 45 45 49 56 73 72 78 80 77 77 96 97 104 104 98 105 103 103 102 121 121 119 134 134 161 174 180 201 208 214 209 249 239 237 245 Naked Turns . | . . . . . . . . . . . . . . . . . . . . . . . . . . . . . . . . . . . . . . . . . . . Heaviest Build 202 | 18 27 27 27 32 48 121 118 117 117 127 146 146 151 150 143 143 153 130 154 154 154 134 134 134 134 176 176 176 193 182 192 171 181 184 188 187 183 190 190 178 188 202 Greatest Support 240 | 40 40 40 40 40 60 60 62 62 64 64 106 106 116 116 116 116 150 150 150 150 150 150 150 150 150 225 225 225 225 225 225 240 240 240 240 240 240 240 240 240 240 240 Greatest Overweight (x) 2 | . . . . . . 2 1 1 1 1 2 1 1 1 1 1 1 . 1 1 1 . . . . . . . . . . . . . . . . . . . . . Average Overweight (x) . | . . . . . . . 1 1 1 1 1 1 1 1 1 1 . . . . . . . . . . . . . . . . . . . . . . . . . . Largest Inventory Capacity 25 | 10 10 10 10 10 10 25 25 25 25 25 25 25 25 25 25 25 25 25 25 25 25 25 25 25 25 25 25 25 25 25 25 25 25 25 25 25 25 25 25 25 25 25 Average Capacity 23 | 8 10 10 10 10 10 21 25 25 25 25 25 25 25 25 25 25 25 25 25 25 25 25 25 25 25 25 25 25 25 25 25 25 25 25 25 25 25 25 25 25 25 25 Most Carried 25 | . 10 10 10 10 10 16 22 21 21 23 25 24 25 25 25 25 25 24 25 25 25 19 19 21 16 24 19 25 25 25 25 25 25 25 25 25 24 23 25 24 25 25 Average Carried 21 | . 7 9 10 10 8 14 19 21 19 21 23 23 23 22 25 24 23 23 21 23 21 16 18 18 16 19 19 21 24 24 22 24 24 21 24 23 22 19 23 24 24 24 Final Capacity 25 | 10 10 10 10 10 10 25 25 25 25 25 25 25 25 25 25 25 25 25 25 25 25 25 25 25 25 25 25 25 25 25 25 25 25 25 25 25 25 25 25 25 25 25 Final Carried 25 | . 9 10 10 10 10 16 21 21 18 23 23 23 24 25 25 25 23 24 22 25 17 18 18 16 16 19 19 23 24 24 24 23 25 23 25 22 23 23 24 24 25 17 Class Distribution -------------------- 46% | Hacker-Tank 11% | Commander-Tank 11% | Wizard-Gunner 9% | Wizard-Mutant 5% | Machinist-Tank 4% | Hacker-Gunner 3% | Wizard-Tank Dominant Class ---------------- Hacker-Tank | -10/Materials Hacker-Tank | -10/Mines Hacker-Tank | -10/Exiles Hacker-Tank | -9/Mines Hacker-Tank | -8/Materials Hacker-Tank | -8/Garrison Hacker-Tank | -8/Materials Hacker-Tank | -8/Garrison Hacker-Tank | -8/Materials Commander-Tank | -8/Garrison Hacker-Tank | -7/Factory Hacker-Tank | -7/Garrison Hacker-Tank | -7/Factory Machinist-Tank | -7/Garrison Fabricator-Gunner | -7/Factory Fabricator-Gunner | -7/DSF Hacker-Gunner | -6/Factory Fabricator-Gunner | -6/Waste Hacker-Tank | -6/Factory Hacker-Tank | -6/Garrison Hacker-Tank | -6/Factory Commander-Tank | -6/Lower Caves Commander-Tank | -6/Lower Caves Commander-Tank | -6/Data Miner Commander-Tank | -5/Proximity Caves Commander-Tank | -5/Factory Commander-Tank | -5/Upper Caves Commander-Tank | -5/Upper Caves Machinist-Tank | -5/Warlord Machinist-Tank | -4/Proximity Caves Hacker-Tank | -4/Factory Wizard-Tank | -4/Armory Commander-Tank | -4/Lab Wizard-Gunner | -3/Research Wizard-Gunner | -3/Quarantine Wizard-Gunner | -3/Section 7 Wizard-Gunner | -3/Garrison Wizard-Mutant | -2/Research Wizard-Mutant | -2/Testing Wizard-Mutant | -2/Garrison Wizard-Mutant | -1/Access Wizard-Mutant | -1/Command Resources | -11 -10 -10 -10 -9 -8 -8 -8 -8 -8 -8 -7 -7 -7 -7 -7 -7 -6 -6 -6 -6 -6 -6 -6 -6 -5 -5 -5 -5 -5 -4 -4 -4 -4 -3 -3 -3 -3 -2 -2 -2 -1 -1 ----------- Run | Yrd Mat Min Exi Min Mat Gar Mat Gar Mat Gar Fac Gar Fac Gar Fac DSF Fac Was Fac Gar Fac Low Low Dat Pro Fac Upp Upp War Pro Fac Arm Lab Res Qua Sec Gar Res Tes Gar Acc Com Matter Collected 24154 | 218 501 81 . 66 347 682 918 769 192 1037 2630 619 1526 1139 . 395 1762 367 1683 607 648 103 96 42 82 451 65 172 406 128 1943 1005 184 385 711 971 120 375 418 130 120 60 Remotely 718 | . . . . . . . . . . . . . . . . . . . . . . . . . . 20 . . . . 327 . . 113 258 . . . . . . . Salvage Created 63613 | . 926 31 48 . 730 1065 1544 1258 324 1169 3445 841 1710 2175 . 364 2710 1067 4254 918 1888 . 50 105 145 1122 . 298 695 200 4732 2904 184 1386 4305 6737 2820 2170 2929 2357 1903 2104 Parts 2810 | . 59 4 . . 55 52 87 50 13 69 183 46 90 104 . 28 139 17 213 47 87 . 3 6 7 52 . 8 30 7 209 139 5 52 151 236 91 79 124 120 81 67 Haulers Intercepted 26 | . 2 . . . . . 1 . . . 7 . 5 . . . 1 . 3 . . . . . . 1 . 1 . . 3 . . . . 2 . . . . . . Recyclers Shooed 13 | . . . . . 1 . . . 1 . . . . . . . 1 . 4 . 1 . . . . 1 . . . . 2 . . . 1 . . . . . . 1 Parts Field Recycled . | . . . . . . . . . . . . . . . . . . . . . . . . . . . . . . . . . . . . . . . . . . . Retrieved Matter . | . . . . . . . . . . . . . . . . . . . . . . . . . . . . . . . . . . . . . . . . . . . Parts Self-Destructed . | . . . . . . . . . . . . . . . . . . . . . . . . . . . . . . . . . . . . . . . . . . . Prevented . | . . . . . . . . . . . . . . . . . . . . . . . . . . . . . . . . . . . . . . . . . . . Kills | -11 -10 -10 -10 -9 -8 -8 -8 -8 -8 -8 -7 -7 -7 -7 -7 -7 -6 -6 -6 -6 -6 -6 -6 -6 -5 -5 -5 -5 -5 -4 -4 -4 -4 -3 -3 -3 -3 -2 -2 -2 -1 -1 ------- Run | Yrd Mat Min Exi Min Mat Gar Mat Gar Mat Gar Fac Gar Fac Gar Fac DSF Fac Was Fac Gar Fac Low Low Dat Pro Fac Upp Upp War Pro Fac Arm Lab Res Qua Sec Gar Res Tes Gar Acc Com Combat Hostiles Destroyed 913 | . 20 2 . . 13 23 28 28 8 26 55 23 29 46 . 8 37 4 54 20 29 . 2 1 2 13 . 3 21 3 56 39 2 14 52 80 34 31 32 34 20 21 Melee 1 | . . . . . . . . . . . 1 . . . . . . . . . . . . . . . . . . . . . . . . . . . . . . . Guns 574 | . 20 2 . . 13 23 28 28 8 26 54 23 29 46 . 8 37 4 53 20 29 . 2 1 2 13 . 3 8 3 44 13 . . . . . 2 8 17 6 1 Cannons 147 | . . . . . . . . . . . . . . . . . . . . . . . . . . . . . . . 6 12 . 6 26 27 22 9 13 5 8 13 AOE 35 | . . . . . . . . . . . . . . . . . . . 1 . . . . . . . . . 13 . . . . 1 4 8 . 7 1 . . . Classes Destroyed 30 | . 5 . . . 5 2 1 1 . 1 . . . . . 1 2 1 3 . . . . . . . . . 2 . . . . . 5 1 . . . . . . Worker 43 | . . . . . 2 . . . . . 4 . 2 . . . 3 . 9 . 3 . . . . 1 . . . . 9 . . 1 2 1 . . 2 . 4 . Builder 22 | . . . . . . . . . . . . . . . . . 1 . 11 . . . . . . . . . . . 8 . . . . . . . . . 2 . Tunneler 2 | . 1 . . . . . . . . . . . . . . . . . . . . . . . . . . . . . . . . 1 . . . . . . . . Hauler 26 | . 2 . . . . . 1 . . . 7 . 5 . . . 1 . 3 . . . . . . 1 . 1 . . 3 . . . . 2 . . . . . . Recycler 30 | . . . . . 1 . . . . . 5 . 2 . . . 3 . 8 . 1 . . . . 1 . . . . 4 . . . . 2 . . 2 . 1 . Minesweeper 1 | . . . . . . . . . . . . . . . . . . . . . . . . . . . . . . . . . . . 1 . . . . . . . Mechanic 1 | . . . . . . . . . . . . . . . . . . . 1 . . . . . . . . . . . . . . . . . . . . . . . Operator 22 | . . . . . 2 . . . 1 . 2 . . . . . 1 . 1 . . . . . . 1 . 1 . . 2 2 . 2 4 1 . . 1 . . 1 Watcher 44 | . 3 . . . . . 3 . . . 3 . 3 1 . . 4 . 5 . . . . . . . . . . . 1 3 . 5 3 4 . . 1 . 2 3 Swarmer 146 | . 2 2 . . 3 3 2 3 3 6 5 9 6 10 . 3 3 . 6 8 3 . 2 . . 2 . . 4 . 13 7 . 2 . 5 7 7 3 13 1 3 Cutter 2 | . . . . . . . . 2 . . . . . . . . . . . . . . . . . . . . . . . . . . . . . . . . . . Saboteur 2 | . . . . . . . . . . . . . . . . . . . 1 . . . . . . . . . . . 1 . . . . . . . . . . . Grunt 329 | . 18 . . . 4 8 11 16 3 12 21 8 9 26 . 2 15 . 23 7 18 . . . 1 4 . 3 9 . 15 7 2 3 23 20 16 5 9 4 4 3 Brawler 16 | . . . . . . . 3 . . 1 1 . . 3 . . 1 . . . . . . . . . . . . . . 5 . . . . 1 . . 1 . . Duelist 18 | . . . . . . 2 1 . . 2 . 1 . . . . 4 . 2 . . . . . . . . . . . . 2 . . 1 1 1 . . . 1 . Protector 2 | . . . . . . . . . . . . . . . . . . . 1 . . . . . . . . . . . . . . . . . . . . 1 . . Researcher 11 | . . . . . . . . . . . . . . . . . . . . . . . . . . . . . . . . . . . 6 4 . . 1 . . . Sentry 124 | . . . . . 5 9 9 3 1 5 10 1 7 4 . . 4 . 6 1 6 . . . . 2 . . . 1 10 7 . 2 5 13 2 1 4 4 1 1 Demolisher 4 | . . . . . . . . . . . . . . . . . . . . . . . . . . . . . . . . . . . 1 . . 2 . 1 . . Specialist 7 | . . . . . . . . . . 1 . . . . . . . . . . . . . . . 1 . . 1 . 1 . . . 2 . . 1 . . . . Hunter 77 | . . . . . 1 . 2 . 1 . 5 3 2 . . . 4 . 5 . 1 . . . . 2 . . . . 7 2 . 4 6 9 2 3 4 3 3 8 Programmer 117 | . . . . . . 1 . 4 . . 13 1 5 3 . 2 5 . 9 3 1 . . . 1 2 . . 3 2 9 10 . 2 9 11 2 1 5 6 6 1 Heavy 1 | . . . . . . . . . . . . . . . . 1 . . . . . . . . . . . . . . . . . . . . . . . . . . Q-Series 5 | . . . . . . . . . . . . . . . . . . . . . . . . . . . . . . . . . . . 1 1 . . 3 . . . Behemoth 13 | . . . . . . . . . . . . . . . . . 1 . 1 1 . . . . . . . . . . . . . 1 . 2 3 3 . 1 . . Compactor 4 | . . . . . . . . . . . . . . . . . . 4 . . . . . . . . . . . . . . . . . . . . . . . . S7 Guard 2 | . . . . . . . . . . . . . . . . . . . . . . . . . . . . . . . . . . . . 2 . . . . . . M Guard 1 | . . . . . . . . . . . . . . . . . . . . . . . . . . . . . . . . . . . . . . . . . . 1 Enhanced Grunt 1 | . . . . . . . . . . . . . . . . . . . . . . . . 1 . . . . . . . . . . . . . . . . . . Tracker 8 | . . . . . . . . . . . . . . . . . . . . . . . . . . . . . . . . . . . 1 3 . . 2 . 2 . Combat Programmer 12 | . . . . . . . . . . . . . . . . . . . . . . . . . . . . . . . . . . . 2 3 . 1 2 . 2 2 Striker 9 | . . . . . . . . . . . . . . . . . . . . . . . . . . . . . 1 . . . . . . 4 . 4 . . . . Executioner 10 | . . . . . . . . . . . . . . . . . . . . . . . . . . . . . 3 . . . . . . 4 . 3 . . . . Alpha 7 2 | . . . . . . . . . . . . . . . . . . . . . . . . . . . . . . . . . . . . 2 . . . . . . Fortress 1 | . . . . . . . . . . . . . . . . . . . . . . . . . . . . . . . . . . . 1 . . . . . . . Thug 1 | . . . . . . . . . . . . . . . . . 1 . . . . . . . . . . . . . . . . . . . . . . . . . Best Kill Streak 26 | . 4 2 . . 5 7 3 8 5 4 4 7 7 8 . 3 8 1 26 9 4 . 1 1 1 4 . 3 9 1 10 5 2 5 9 9 7 10 7 13 11 7 Combat Bots Only 13 | . 4 2 . . 3 7 3 8 4 4 3 7 4 8 . 3 5 1 5 9 4 . 1 1 1 4 . 2 9 1 7 5 2 3 9 9 7 10 6 13 6 5 Max Kills in Single Turn 8 | . 2 1 . . 2 2 2 2 1 3 2 2 2 2 . 1 3 1 7 1 2 . 1 1 1 3 . 2 8 1 2 1 1 1 2 2 2 2 2 2 2 1 Gunslinging 2 | . . . . . . . 1 1 . 1 1 1 . 1 . . 1 . 1 . 1 . . . . 2 . 1 . . 1 . . . . . . . . . . . Exploded 8 | . . . . . . . . . . . . . . . . . . . 1 . . . . . . . . . 8 . . . . 1 2 2 . 2 1 . . . Melee 1 | . . . . . . . . . . . 1 . . . . . . . . . . . . . . . . . . . . . . . . . . . . . . . Uniques/NPCs Destroyed 3 | . . . . . . . . . . . . . . . . . . . . . . . . . . . . . . . . . 1 . . . . . . . . 2 A5 (-4/Lab) MAIN.C Shell (-1/Command) MAIN.C (-1/Command) Combat | -11 -10 -10 -10 -9 -8 -8 -8 -8 -8 -8 -7 -7 -7 -7 -7 -7 -6 -6 -6 -6 -6 -6 -6 -6 -5 -5 -5 -5 -5 -4 -4 -4 -4 -3 -3 -3 -3 -2 -2 -2 -1 -1 -------- Run | Yrd Mat Min Exi Min Mat Gar Mat Gar Mat Gar Fac Gar Fac Gar Fac DSF Fac Was Fac Gar Fac Low Low Dat Pro Fac Upp Upp War Pro Fac Arm Lab Res Qua Sec Gar Res Tes Gar Acc Com Hostile Shots Fired 3921 | . 25 3 . . 15 37 63 89 57 56 296 80 237 268 . 33 191 3 316 71 109 . 1 . 11 4 . 9 78 10 390 177 13 55 173 484 94 80 90 105 86 112 Missed 1153 | . 8 1 . . 5 11 22 23 22 20 96 20 83 87 . 14 56 . 118 22 36 . . . 5 3 . 2 24 3 89 45 4 19 52 108 25 18 26 40 14 32 Intercepted 1 | . . . . . . . . . . . . . . . . . . . . . . . . . . . . . . . . . . . . . . . . . . 1 Damage Taken 9273 | . 129 9 . . 116 365 317 464 244 251 898 24 196 278 . 64 493 84 402 195 99 . 3 . 16 1 . 5 67 21 706 595 239 276 634 920 44 166 80 148 233 491 Core 734 | . 6 . . . 22 56 13 40 16 16 63 . 19 27 . 14 63 29 31 10 10 . . . 2 . . . 13 . 37 49 . 20 8 30 21 . 4 3 32 80 Absorbed by Shields 11502 | . . . . . . 46 133 197 45 106 456 233 544 787 . 74 627 . 809 217 354 . 6 . 36 6 . 52 331 13 1325 545 119 210 475 1635 293 363 314 351 275 525 Reduced by Siege Mode 333 | . . . . . . . . . . . . . . . . . 10 . 26 13 . . . . . . . . 2 . 86 1 . . 21 65 1 . . . . 108 Ignored by Resistances 32230 | . 83 7 . . 72 239 268 396 184 219 1073 509 868 1068 . 190 1344 47 1690 500 672 . 5 . 75 11 . 104 984 117 3697 2219 73 380 1473 5425 1254 1532 1103 1218 1289 1842 Regen/Repaired (Parts) 578 | . . . . . . . 68 . 46 . 317 . 27 . . . 104 . . . 15 . . . 1 . . . . . . . . . . . . . . . . . Core Remaining (%) 87 | 100 . . . 97 . . . . . 70 . . . . . 82 . . . . . . . . 82 . . . . 98 . . 92 . . . 93 . . 93 . 72 Volleys Fired 2413 | . 44 5 4 . 24 47 53 68 19 64 147 52 74 83 . 15 96 22 113 60 40 1 2 1 3 27 . 11 27 9 142 129 16 59 165 263 110 96 76 111 74 61 Largest 3 | . 3 3 3 . 3 3 3 3 3 3 3 3 3 3 . 3 3 3 3 3 3 1 3 3 3 3 . 3 3 3 3 3 1 1 1 1 1 1 1 1 1 1 Hottest 300 | . 69 69 69 . 84 84 84 84 84 84 90 60 60 45 . 45 45 45 90 90 90 30 90 90 90 90 . 90 90 90 90 94 94 200 200 200 200 200 200 100 180 300 Shots Fired 4697 | . 124 15 12 . 72 128 158 178 57 160 445 138 217 221 . 45 284 61 329 134 120 1 6 3 9 76 . 33 72 27 356 184 16 60 166 262 110 96 76 111 74 61 Gun 3679 | . 120 15 12 . 72 128 158 178 57 160 445 138 217 221 . 45 282 61 325 133 120 1 6 3 9 76 . 33 69 27 322 92 . . . 17 . 16 21 60 37 3 Cannon 971 | . 4 . . . . . . . . . . . . . . . . . . . . . . . . . . . . . 34 85 13 60 161 237 107 75 55 47 37 56 Launcher 10 | . . . . . . . . . . . . . . . . . . . 4 1 . . . . . . . . 3 . . . 1 . . . . . . . . 1 Special 37 | . . . . . . . . . . . . . . . . . 2 . . . . . . . . . . . . . . 7 2 . 5 8 3 5 . 4 . 1 Kinetic 3558 | . 124 15 12 . 72 128 158 178 57 160 445 138 217 221 . 45 282 61 325 133 120 1 6 3 9 76 . 33 69 27 322 100 7 . 14 . . . . . . . Thermal 76 | . . . . . . . . . . . . . . . . . . . . . . . . . . . . . . . . . . 13 17 29 2 5 4 . . 6 Explosive 3 | . . . . . . . . . . . . . . . . . . . 2 1 . . . . . . . . . . . . . . . . . . . . . . Electromagnetic 813 | . . . . . . . . . . . . . . . . . . . 2 . . . . . . . . . . . 34 77 6 47 130 206 93 68 43 47 25 35 Slashing 188 | . . . . . . . . . . . . . . . . . . . . . . . . . . . . . . . . . . . . 2 12 18 29 60 49 18 Entropic 21 | . . . . . . . . . . . . . . . . . . . . . . . . . . . . . 3 . . . 1 . . 17 . . . . . . Robot Hit Streak 80 | . 18 19 7 . 14 46 39 38 25 21 33 21 36 38 . 20 38 61 64 24 25 . 3 6 15 52 . 16 21 14 67 40 25 16 40 53 30 61 66 24 24 80 Robot Miss Streak 6 | . 2 1 1 . 2 2 2 2 2 2 3 2 2 1 . 1 2 . 3 2 1 . 2 . . 1 . 1 2 1 6 2 1 2 3 3 2 1 2 1 4 2 Penetration Max 3 | . . . . . 1 1 1 1 1 1 . . . . . . . . 1 1 1 . . . . 1 . 1 2 1 2 1 . . . 1 1 . 1 1 1 3 Secondary Targets 115 | . . . . . . 2 4 7 5 6 8 7 3 14 . 2 8 . 14 4 8 . . . . 3 . 1 3 . 13 3 . . . . . . . . . . Max Gunslinging Chain 2 | . . . . . . 1 1 1 1 1 1 1 1 1 . 1 1 . 2 1 2 . . . . 2 . 1 1 . 1 1 . . . . . . . . . . Capacitor 971 | . . . . . . . . . . . . . . . . . . . . . . . . . . . . . . . 22 . . 60 141 234 107 91 76 107 74 59 Shots Hit Robots 3619 | . 83 3 8 . 50 81 110 119 47 135 325 110 169 188 . 34 224 56 252 82 95 . 3 4 9 59 . 29 58 22 281 140 5 44 136 219 76 87 68 81 70 57 Core Hits 1696 | . 41 2 3 . 22 34 48 48 17 52 127 45 65 83 . 13 106 14 174 37 58 . 2 2 4 25 . 13 35 4 130 53 . 17 60 88 42 42 55 35 39 61 Critical Kills 40 | . . . . . . 1 2 1 . . . . 1 3 . . 1 . 2 4 6 . . 1 . 2 . . 1 . 8 4 . . 1 1 . . 1 . . . Critical Parts Destroyed 78 | . . . 1 . . 1 3 2 . 2 2 5 3 . . 1 3 1 8 4 5 . . . 1 4 . 3 4 2 15 5 . . . 1 . . . . . 2 Critical Strikes 155 | . . . 1 . . 2 5 3 . 2 2 5 4 3 . 1 5 1 12 8 12 . . 1 1 6 . 3 5 2 25 13 . 1 2 4 6 3 3 1 8 5 Meltdown 3 | . . . . . . . . . . . . . . . . . . . . . . . . . . . . . . . . . . . 1 1 . . 1 . . . Destroy 119 | . . . 1 . . 2 5 3 . 2 2 5 4 3 . 1 5 1 12 8 12 . . 1 1 6 . 3 5 2 24 9 . . . . . . . . . 2 Corrupt 20 | . . . . . . . . . . . . . . . . . . . . . . . . . . . . . . . 1 4 . 1 1 2 4 2 . 1 1 3 Sever 12 | . . . . . . . . . . . . . . . . . . . . . . . . . . . . . . . . . . . . . 2 1 2 . 7 . Detonate 1 | . . . . . . . . . . . . . . . . . . . . . . . . . . . . . . . . . . . . 1 . . . . . . Melee Attacks 66 | . . . . . . . . 7 . 31 . 14 1 10 . . 2 . . . . . . 1 . . . . . . . . . . . . . . . . . . Impact 3 | . . . . . . . . . . . . . 1 . . . 2 . . . . . . . . . . . . . . . . . . . . . . . . . Slashing . | . . . . . . . . . . . . . . . . . . . . . . . . . . . . . . . . . . . . . . . . . . . Piercing 1 | . . . . . . . . . . . . . . . . . . . . . . . . 1 . . . . . . . . . . . . . . . . . . Sneak Attacks 63 | . . . . . . . . 7 . 31 . 14 . 10 . . . . . . . . . 1 . . . . . . . . . . . . . . . . . . Combat Hostiles . | . . . . . . . . . . . . . . . . . . . . . . . . . . . . . . . . . . . . . . . . . . . Follow-up Attacks . | . . . . . . . . . . . . . . . . . . . . . . . . . . . . . . . . . . . . . . . . . . . Damage Inflicted 150397 | . 1128 51 91 . 1123 1955 2687 2987 919 2880 7940 2149 4195 4376 . 875 5682 1670 9001 2738 3513 . 97 142 288 2159 . 1148 6062 1014 11158 5442 166 3210 12067 17821 5556 4827 5930 4190 5093 8067 Guns 79612 | . 1124 51 91 . 1105 1955 2687 2987 914 2880 7917 2114 4163 4376 . 875 5360 1670 6906 2738 3475 . 97 89 288 2156 . 1148 2612 1014 9860 2605 . . . 753 . 496 914 2174 1875 143 Cannons 57548 | . . . . . . . . . . . . . . . . . . . . . . . . . . . . . . . 1277 2806 166 2900 10411 14546 5446 2971 4357 2016 3218 7434 Explosions 12870 | . . . . . . . . . . . . . . . . . 295 . 2058 . . . . . . . . . 3450 . . 31 . 310 1639 2479 110 1360 652 . . 486 Melee 53 | . . . . . . . . . . . . . . . . . . . . . . . . 53 . . . . . . . . . . . . . . . . . . Ramming 314 | . 4 . . . 18 . . . 5 . 23 35 32 . . . 27 . 37 . 38 . . . . 3 . . . . 21 . . . 17 43 . . 7 . . 4 Kinetic 74060 | . 1124 51 91 . 1105 1955 2687 2987 914 2880 7917 2114 4163 4376 . 875 5360 1670 6906 2738 3475 . 97 89 288 2156 . 1148 2612 1014 9860 2605 . . 803 . . . . . . . Thermal 20899 | . . . . . . . . . . . . . . . . . . . 223 . . . . . . . . . . . . . . 660 4885 8175 380 2025 1397 . . 3154 Explosive 2019 | . . . . . . . . . . . . . . . . . 295 . 1693 . . . . . . . . . . . . 31 . . . . . . . . . . Electromagnetic 35461 | . . . . . . . . . . . . . . . . . . . 142 . . . . . . . . . . . 1277 2806 166 2550 6362 8602 3537 2156 2148 2016 1520 2179 Impact . | . . . . . . . . . . . . . . . . . . . . . . . . . . . . . . . . . . . . . . . . . . . Slashing 13388 | . . . . . . . . . . . . . . . . . . . . . . . . . . . . . . . . . . . . 248 1639 646 2378 2174 3573 2730 Piercing 53 | . . . . . . . . . . . . . . . . . . . . . . . . 53 . . . . . . . . . . . . . . . . . . Entropic 4203 | . . . . . . . . . . . . . . . . . . . . . . . . . . . . . 3450 . . . . . . 753 . . . . . . Highest Corruption 8 | . 1 1 1 1 1 2 2 3 3 3 4 4 . 1 1 1 2 8 8 1 1 . . . . . . . . . 4 5 2 1 1 1 . . . . . . Average Corruption 2 | . 1 1 1 1 1 1 2 2 3 3 3 3 . 1 1 1 1 5 2 1 1 . . . . . . . . . 2 3 1 1 1 1 . . . . . . Corruption Purged 38 | . . . . . . . . . . . . 4 . 1 . 1 2 . 9 . 1 . . . . . . . . . 8 7 2 1 1 1 . . . . . . Corruption Blocked . | . . . . . . . . . . . . . . . . . . . . . . . . . . . . . . . . . . . . . . . . . . . Effects 426 | . 14 7 4 1 2 24 44 33 7 59 102 28 . 4 . 4 3 6 9 . 2 . . . . . . . . . 15 30 1 3 9 15 . . . . . . Message Errors 116 | . 6 1 2 . . 6 10 8 3 14 32 7 . 2 . 2 1 1 3 . . . . . . . . . . . 3 6 . 1 1 7 . . . . . . Matter Fused 98 | . 2 2 . 1 2 5 8 9 2 14 22 7 . . . 2 1 2 2 . 1 . . . . . . . . . 5 9 . . 1 1 . . . . . . Heat Flow Errors 49 | . 2 1 . . . 3 7 2 1 5 10 4 . . . . . . 3 . . . . . . . . . . . 3 4 1 . 1 2 . . . . . . Energy Discharges 53 | . 2 1 2 . . 3 5 7 1 9 9 . . . . . 1 1 . . . . . . . . . . . . 1 6 . . 2 3 . . . . . . Parts Rejected 2 | . . . . . . . 1 . . . . 1 . . . . . . . . . . . . . . . . . . . . . . . . . . . . . . Parts Fused 3 | . . . . . . 1 1 . . . . 1 . . . . . . . . . . . . . . . . . . . . . . . . . . . . . . Data Loss (minor) 48 | . 1 1 . . . 3 8 5 . 8 14 1 . . . . . 1 1 . . . . . . . . . . . 1 1 . . 2 1 . . . . . . Data Loss (major) 19 | . 1 1 . . . 1 1 . . 5 6 1 . . . . . . . . . . . . . . . . . . 2 . . 1 . . . . . . . . Misfires 23 | . . . . . . 2 1 . . 3 7 5 . 1 . . . . . . . . . . . . . . . . . 2 . 1 1 . . . . . . . Alerts 6 | . . . . . . . . 2 . . 1 1 . . . . . . . . 1 . . . . . . . . . . . . . 1 . . . . . . . Weapon Failures 9 | . . . . . . . 2 . . 1 1 . . 1 . . . 1 . . . . . . . . . . . . . 2 . . . 1 . . . . . . Overload Shots . | . . . . . . . . . . . . . . . . . . . . . . . . . . . . . . . . . . . . . . . . . . . Overflow Damage 6113 | . . . . . . . . . . . . . . . . . 13 . 109 . . . . . . . . . 177 . . 107 7 501 1866 2212 202 328 153 79 105 254 Projectiles 4860 | . . . . . . . . . . . . . . . . . . . . . . . . . . . . . . . . 107 7 454 1514 1934 162 91 153 79 105 254 Explosions 1240 | . . . . . . . . . . . . . . . . . 13 . 109 . . . . . . . . . 177 . . . . 47 352 265 40 237 . . . . Melee 13 | . . . . . . . . . . . . . . . . . . . . . . . . . . . . . . . . . . . . 13 . . . . . . Knockbacks 6 | . . . . . . . . . . . . 1 . . . . . . 1 . 1 . . . . . . . . . . . . . . 1 . . 1 . . 1 Impact 6 | . . . . . . . . . . . . 1 . . . . . . 1 . 1 . . . . . . . . . . . . . . 1 . . 1 . . 1 Kinetic . | . . . . . . . . . . . . . . . . . . . . . . . . . . . . . . . . . . . . . . . . . . . Secondary . | . . . . . . . . . . . . . . . . . . . . . . . . . . . . . . . . . . . . . . . . . . . Self-Inflicted Damage 126 | . . . . . . . . . . . . . . . . . . . . . . . . . . . . . . . . . . 68 25 33 . . . . . . Shots 4 | . . . . . . . . . . . . . . . . . . . . . . . . . . . . . . . . . . 2 1 1 . . . . . . Rammed 27 | . 5 . . . 1 . . . 1 . 2 5 1 . . . 2 . 2 . 1 . . . . 1 . . . . 1 . . . 2 1 . . 1 . . 1 Targets Rammed 31 | . 5 . . . 2 . . . 1 . 3 5 2 . . . 2 . 2 . 1 . . . . 1 . . . . 2 . . . 2 1 . . 1 . . 1 Kicked . | . . . . . . . . . . . . . . . . . . . . . . . . . . . . . . . . . . . . . . . . . . . Crushed 4 | . . . . . 1 . . . . . 1 . 1 . . . . . . . . . . . . . . . . . 1 . . . . . . . . . . . Highest Temperature 496 | . 191 90 122 . 146 245 387 324 238 275 303 307 60 23 . 313 32 12 216 126 128 . 27 27 29 201 . 240 252 137 286 248 211 496 350 369 300 280 296 100 231 402 Average Temperature 66 | . 32 38 67 . 39 65 71 96 91 74 83 67 18 8 . 114 5 6 36 43 37 . 16 16 17 51 . 101 80 59 60 65 46 110 92 96 66 82 65 67 98 143 Received Heat Transfer 1824 | . 108 . . . 45 87 162 262 54 168 316 5 29 17 . . 63 . 32 51 45 . . . 6 1 . . 23 1 92 51 33 12 76 50 . . 18 13 4 . Effects 20 | . . . . . . . 1 1 2 . 3 . . . . 3 . . . . . . . . . . . 1 2 . 2 . . 3 . 1 . . . . . 1 Shutdowns 1 | . . . . . . . 1 . . . . . . . . . . . . . . . . . . . . . . . . . . . . . . . . . . . Energy Bleed 4 | . . . . . . . . 1 . . 1 . . . . . . . . . . . . . . . . 1 . . . . . . . . . . . . . 1 Interference 14 | . . . . . . . . . 2 . 2 . . . . 3 . . . . . . . . . . . . 2 . 2 . . 3 . . . . . . . . Damage (minor) 1 | . . . . . . . . . . . . . . . . . . . . . . . . . . . . . . . . . . . . 1 . . . . . . Siege Activations 54 | . . . . . . . . . . . . . . . . . 1 3 4 3 2 . . . . . . . 2 . 9 2 . . 6 14 3 2 1 . 1 1 Total Turns 747 | . . . . . . . . . . . . . . . . . 19 10 64 17 16 . . . . . . . 26 . 247 29 . . 85 171 9 11 3 . 5 35 Longest Duration 111 | . . . . . . . . . . . . . . . . . 19 7 29 9 13 . . . . . . . 13 . 111 15 . . 36 55 4 9 3 . 5 35 Robots Corrupted 164 | . . . . . . . . . . . . . . . . . . . 1 . . . . . . . . . . . 7 16 2 8 22 44 15 13 9 12 7 8 Combat Hostiles 152 | . . . . . . . . . . . . . . . . . . . . . . . . . . . . . . . 6 14 2 7 21 43 12 13 9 12 6 7 Parts Fried 375 | . . . . . . . . . . . . . . . . . 1 . 1 . . . . . . 1 . . . . 14 33 3 28 69 93 32 15 31 19 16 19 Impact Corruptions 2 | . . . . . . . . . . . . . . . . . . . 1 . . . . . . . . . . . . . . . . 1 . . . . . . Robots Melted 4 | . . . . . . . . . . . . . . . . . . . . . . . . . . . . . . . . . . . 1 2 . . 1 . . . Combat Hostiles 4 | . . . . . . . . . . . . . . . . . . . . . . . . . . . . . . . . . . . 1 2 . . 1 . . . Parts Melted 11 | . . . . . . . . . . . . . . . . . 1 . 4 . . . . . . . . . . . . . . . . 4 1 . 1 . . . Heat Transferred 8714 | . . . . . . . . . . . . . . . . . . . 200 . . . . . . . . . . . . . . 420 2325 3324 130 1392 690 . . 233 Parts Sabotaged . | . . . . . . . . . . . . . . . . . . . . . . . . . . . . . . . . . . . . . . . . . . . Parts Stolen . | . . . . . . . . . . . . . . . . . . . . . . . . . . . . . . . . . . . . . . . . . . . Parts Stripped . | . . . . . . . . . . . . . . . . . . . . . . . . . . . . . . . . . . . . . . . . . . . Power Chain Reactions 6 | . . . . . . . . . . . . . . . . . . . 2 . . . . . . . . . . . . . . . . . . 2 2 . . . Alert | -11 -10 -10 -10 -9 -8 -8 -8 -8 -8 -8 -7 -7 -7 -7 -7 -7 -6 -6 -6 -6 -6 -6 -6 -6 -5 -5 -5 -5 -5 -4 -4 -4 -4 -3 -3 -3 -3 -2 -2 -2 -1 -1 ------- Run | Yrd Mat Min Exi Min Mat Gar Mat Gar Mat Gar Fac Gar Fac Gar Fac DSF Fac Was Fac Gar Fac Low Low Dat Pro Fac Upp Upp War Pro Fac Arm Lab Res Qua Sec Gar Res Tes Gar Acc Com Peak Influence 2669 | . 226 54 . 31 341 1168 542 1218 671 2669 1141 1471 618 2270 888 692 641 10 654 1352 641 . . . . 526 . . . . 758 557 . 513 805 861 1801 1281 512 1765 1372 989 Initial 1040 | . . 17 . . 8 17 417 . 435 332 1040 13 573 37 885 478 269 10 . 42 526 . . . . 150 . . . . 19 269 . . 135 61 420 760 397 170 802 466 Average 461 | . 72 8 . 20 100 594 176 602 533 1379 346 896 145 1049 885 594 196 1 195 785 403 . . . . 269 . . . . 372 232 . 255 409 464 1172 996 288 1109 948 783 Maximum Alert Level 5 | . 1 . . . 1 4 2 4 2 5 4 4 2 5 3 2 2 . 2 4 2 . . . . 2 . . . . 3 2 . 2 3 3 5 4 2 5 4 3 Low Security (%) 36 | 100 97 100 . 100 84 8 62 17 . . 52 10 76 2 . . 62 100 64 6 7 . . . . 30 . . . . 30 39 . 31 10 9 . . 21 3 . . Level 1 20 | . 2 . . . 15 30 21 15 . 1 11 7 14 9 . . 22 . 19 6 34 . . . . 59 . . . . 24 48 . 64 41 30 . . 53 7 . . Level 2 21 | . . . . . . 21 16 26 100 16 17 10 9 16 . 100 15 . 15 42 58 . . . . 9 . . . . 37 11 . 3 45 48 11 . 24 9 16 29 Level 3 11 | . . . . . . 22 . 29 . 23 14 34 . 26 100 . . . . 16 . . . . . . . . . . 7 . . . 2 11 29 69 . 26 45 70 Level 4 7 | . . . . . . 17 . 10 . 25 3 37 . 25 . . . . . 28 . . . . . . . . . . . . . . . . 44 30 . 30 38 . Level 5 2 | . . . . . . . . . . 32 . . . 18 . . . . . . . . . . . . . . . . . . . . . . 14 . . 22 . . High Security . | . . . . . . . . . . . . . . . . . . . . . . . . . . . . . . . . . . . . . . . . . . . Max Security . | . . . . . . . . . . . . . . . . . . . . . . . . . . . . . . . . . . . . . . . . . . . Sterilizations 1 | . . . . . . . . . . . . . . . . 1 . . . . . . . . . . . . . . . . . . . . . . . . . . Squads Dispatched 210 | . 6 . . 1 2 . 5 . 2 . 30 . 12 . . 1 14 . 19 . 13 . . . . 4 . . . . 7 7 . 8 17 27 . 8 16 . 6 5 Investigation 55 | . 6 . . 1 1 . 4 . 1 . 9 . 5 . . . 4 . 6 . 4 . . . . 2 . . . . 1 . . 2 . 4 . 1 3 . . 1 Extermination 64 | . . . . . . . . . . . 10 . 6 . . . 7 . 7 . 3 . . . . 1 . . . . 4 6 . 2 4 7 . . 4 . 2 1 Reinforcement 45 | . . . . . . . . . . . 5 . 1 . . 1 2 . 5 . 5 . . . . 1 . . . . 2 1 . 2 8 6 . 3 2 . 1 . Assault 6 | . . . . . . . . . . . . . . . . . 1 . . . . . . . . . . . . . . . . . 1 . . . 1 . . 3 Garrison 18 | . . . . . 1 . 1 . 1 . 6 . . . . . . . 1 . 1 . . . . . . . . . . . . . . 4 . . 3 . . . Intercept 22 | . . . . . . . . . . . . . . . . . . . . . . . . . . . . . . . . . . 2 4 6 . 4 3 . 3 . Searches Triggered . | . . . . . . . . . . . . . . . . . . . . . . . . . . . . . . . . . . . . . . . . . . . Construction Impeded 6 | . . . . . . . . . . . . . . . . . . . 1 . 1 . . . . . . . . . 1 . . 1 1 1 . . . . . . Haulers Reinforced 8 | . . . . . . . . . . . 1 . . . . . . . 1 . 2 . . . . 1 . . . . 1 . . . . . . 1 . . 1 . Active Scanning Responses . | . . . . . . . . . . . . . . . . . . . . . . . . . . . . . . . . . . . . . . . . . . . Cargo Convoy Interrupts 3 | . . . . . . . . . . . . . . . . . 1 . 1 . . . . . . . . . . . 1 . . . . . . . . . . . Stealth | -11 -10 -10 -10 -9 -8 -8 -8 -8 -8 -8 -7 -7 -7 -7 -7 -7 -6 -6 -6 -6 -6 -6 -6 -6 -5 -5 -5 -5 -5 -4 -4 -4 -4 -3 -3 -3 -3 -2 -2 -2 -1 -1 --------- Run | Yrd Mat Min Exi Min Mat Gar Mat Gar Mat Gar Fac Gar Fac Gar Fac DSF Fac Was Fac Gar Fac Low Low Dat Pro Fac Upp Upp War Pro Fac Arm Lab Res Qua Sec Gar Res Tes Gar Acc Com Distress Signals 48 | . 1 . . . 2 . 2 . . . 6 . . 1 . . 4 . 1 . 3 . . . . 2 . . . . 1 2 . 1 . 2 . 1 4 . 3 12 Communications Jammed 176 | . . . . . . . . . . . . . 1 . . . . . 1 . . . . . . . . . . . 101 7 . 4 1 49 . . . 1 10 1 Distress Signals 174 | . . . . . . . . . . . . . 1 . . . . . . . . . . . . . . . . . 101 7 . 3 1 49 . . . 1 10 1 Times Spotted 1310 | . 22 2 . . 20 24 37 33 10 42 92 36 42 57 . 9 68 5 77 24 55 . 1 3 4 24 . 10 56 4 75 59 4 35 65 103 36 50 36 35 27 28 Peak Tracking Total 19 | . 3 1 . . 4 8 3 5 5 5 3 5 4 6 . 4 8 1 6 3 5 . 1 4 3 3 . 5 19 2 8 5 3 6 6 5 5 12 4 6 4 10 Tactical Retreats 34 | . . . . . . 1 2 . . 2 . 1 1 8 . 2 2 1 . . 2 . . . . 1 . 1 . 1 1 . . . . 5 1 . . 1 1 . Traps | -11 -10 -10 -10 -9 -8 -8 -8 -8 -8 -8 -7 -7 -7 -7 -7 -7 -6 -6 -6 -6 -6 -6 -6 -6 -5 -5 -5 -5 -5 -4 -4 -4 -4 -3 -3 -3 -3 -2 -2 -2 -1 -1 ------- Run | Yrd Mat Min Exi Min Mat Gar Mat Gar Mat Gar Fac Gar Fac Gar Fac DSF Fac Was Fac Gar Fac Low Low Dat Pro Fac Upp Upp War Pro Fac Arm Lab Res Qua Sec Gar Res Tes Gar Acc Com Traps Triggered 72 | . 2 . . . 2 6 . 10 . 8 4 4 2 4 . 2 3 . 2 5 1 . . . . . . . . . 5 . . . 1 2 . . 4 5 . . Indirectly . | . . . . . . . . . . . . . . . . . . . . . . . . . . . . . . . . . . . . . . . . . . . Trap Hack Attempts 72 | . . . . . . 3 27 . . . . 1 18 23 . . . . . . . . . . . . . . . . . . . . . . . . . . . . Triggered 2 | . . . . . . . 1 . . . . . 1 . . . . . . . . . . . . . . . . . . . . . . . . . . . . . Disarmed 11 | . . . . . . . 1 . . . . . 1 3 . . . . 6 . . . . . . . . . . . . . . . . . . . . . . . Reprogrammed 64 | . . . . . . 1 1 . . . . 1 4 4 . . . . 22 . 6 . . . . 6 . . . . . 2 . 2 9 . . . . . . 6 Reused 7 | . . . . . . . . . . . . . . . . . . . 1 . 2 . . . . 2 . . . . . . . 1 . . . . . . . 1 Traps Extracted . | . . . . . . . . . . . . . . . . . . . . . . . . . . . . . . . . . . . . . . . . . . . Installed . | . . . . . . . . . . . . . . . . . . . . . . . . . . . . . . . . . . . . . . . . . . . Triggered 21 | . . . . . . . . . . . . . . . . . 3 . 1 . 3 . . . . 2 1 1 7 . . 1 . 1 . . . . . . . 1 Machines | -11 -10 -10 -10 -9 -8 -8 -8 -8 -8 -8 -7 -7 -7 -7 -7 -7 -6 -6 -6 -6 -6 -6 -6 -6 -5 -5 -5 -5 -5 -4 -4 -4 -4 -3 -3 -3 -3 -2 -2 -2 -1 -1 ---------- Run | Yrd Mat Min Exi Min Mat Gar Mat Gar Mat Gar Fac Gar Fac Gar Fac DSF Fac Was Fac Gar Fac Low Low Dat Pro Fac Upp Upp War Pro Fac Arm Lab Res Qua Sec Gar Res Tes Gar Acc Com Machines Disabled 194 | . . 1 . . 4 7 2 7 2 10 5 7 1 8 . 1 7 . 16 8 12 . . 1 . 4 . . . . 8 11 6 3 7 26 10 2 5 11 1 1 Max in Single Turn 5 | . . 1 . . 1 1 1 1 1 2 2 1 1 1 . 1 4 . 5 1 1 . . . . 1 . . . . 4 2 5 1 1 4 1 1 1 2 1 1 Garrison Access 13 | . . . . . . . . . . . 1 . 2 . . . 1 . 1 . 1 . . . . . . . . . 1 . . 3 1 . . 2 . . . . Garrison Relay 43 | . . . . . . 6 . 6 . 6 . 5 . 5 . . . . . 5 . . . . . . . . . . . . . . . . 5 . . 5 . . Phase Generator 3 | . . . . . . . . . . 1 . . . 1 . . . . . . . . . . . . . . . . . . . . . . . . . 1 . . Machines Repaired . | . . . . . . . . . . . . . . . . . . . . . . . . . . . . . . . . . . . . . . . . . . . Machines Dismantled 9 | . . . . . . . . . . . . . . 8 . . . . . . . . . . . 1 . . . . . . . . . . . . . . . . Machines Sabotaged . | . . . . . . . . . . . . . . . . . . . . . . . . . . . . . . . . . . . . . . . . . . . Overloaded Fab Kills . | . . . . . . . . . . . . . . . . . . . . . . . . . . . . . . . . . . . . . . . . . . . Hacking | -11 -10 -10 -10 -9 -8 -8 -8 -8 -8 -8 -7 -7 -7 -7 -7 -7 -6 -6 -6 -6 -6 -6 -6 -6 -5 -5 -5 -5 -5 -4 -4 -4 -4 -3 -3 -3 -3 -2 -2 -2 -1 -1 --------- Run | Yrd Mat Min Exi Min Mat Gar Mat Gar Mat Gar Fac Gar Fac Gar Fac DSF Fac Was Fac Gar Fac Low Low Dat Pro Fac Upp Upp War Pro Fac Arm Lab Res Qua Sec Gar Res Tes Gar Acc Com Machines Accessed 300 | . 11 . 2 1 11 3 11 1 2 3 25 3 26 4 1 . 20 . 22 2 18 1 . 4 1 10 . . 7 . 15 21 . 18 11 19 1 1 9 2 8 6 Terminals 168 | . 8 . . . 9 3 6 1 . 3 9 3 12 4 1 . 9 . 11 2 8 . . . 1 5 . . . . 8 11 . 9 8 15 1 . 5 2 8 6 Fabricators 40 | . . . . . . . . . . . 5 . 4 . . . 4 . 4 . 5 . . . . 4 . . . . 2 8 . 3 . . . . 1 . . . Repair Stations 9 | . 1 . . . . . 1 . 1 . 3 . 1 . . . 1 . . . . . . . . . . . . . . . . 1 . . . . . . . . Recycling Units 23 | . 2 . . . 1 . 1 . . . 4 . 3 . . . 3 . 2 . 2 . . . . . . . . . 3 2 . . . . . . . . . . Scanalyzers 26 | . . . . . . . 2 . . . 2 . 3 . . . 2 . 3 . 2 . . . . 1 . . . . 1 . . 2 2 3 . 1 2 . . . Garrison Access 19 | . . . . . 1 . 1 . 1 . 2 . 3 . . . 1 . 2 . 1 . . . . . . . . . 1 . . 3 1 1 . . 1 . . . Total Hacks 1205 | . 42 . 24 1 33 6 42 4 6 11 84 4 90 8 1 . 73 . 106 8 81 1 . 30 1 50 . . 11 . 74 141 . 84 45 50 3 10 29 6 26 20 Successful 947 | . 32 . 24 1 26 3 33 3 3 4 59 3 62 7 1 . 52 . 82 5 68 1 . 30 1 42 . . 11 . 47 119 . 78 36 44 2 8 21 4 20 15 Failed 258 | . 10 . . . 7 3 9 1 3 7 25 1 28 1 . . 21 . 24 3 13 . . . . 8 . . . . 27 22 . 6 9 6 1 2 8 2 6 5 Catastrophic 19 | . 2 . . . . . . . . 2 3 . . 1 . . 2 . 2 . . . . . . 1 . . . . 3 2 . . . . 1 . . . . . Database Lockouts . | . . . . . . . . . . . . . . . . . . . . . . . . . . . . . . . . . . . . . . . . . . . Manual 601 | . 36 . 1 . 27 1 20 4 1 9 32 1 50 5 . . 38 . 57 7 38 . . . . 20 . . 1 . 45 74 . 45 17 26 3 1 10 4 13 15 Terminals 651 | . 37 . . . 28 6 21 4 . 11 32 4 47 8 1 . 28 . 49 8 30 . . . 1 16 . . . . 54 76 . 47 37 35 3 . 16 6 26 20 Fabricators 228 | . . . . . . . . . . . 21 . 14 . . . 24 . 25 . 32 . . . . 27 . . . . 5 58 . 17 . . . . 5 . . . Repair Stations 25 | . 1 . . . . . 2 . 3 . 10 . 4 . . . 3 . . . . . . . . . . . . . . . . 2 . . . . . . . . Recycling Units 69 | . 4 . . . 3 . 2 . . . 10 . 10 . . . 9 . 7 . 7 . . . . . . . . . 10 7 . . . . . . . . . . Scanalyzers 125 | . . . . . . . 14 . . . 8 . 11 . . . 6 . 20 . 10 . . . . 7 . . . . 4 . . 15 6 8 . 10 6 . . . Garrison Access 40 | . . . . . 2 . 3 . 3 . 3 . 4 . . . 3 . 5 . 2 . . . . . . . . . 1 . . 3 2 7 . . 2 . . . Terminal Hacks 396 | . 17 . 24 1 15 2 5 1 . 2 14 2 18 4 1 . 9 . 24 3 13 1 . 30 1 7 . . 11 . 21 45 . 36 26 24 1 . 7 3 18 10 Record 40 | . . . 23 . . . . . . . . . . . . . . . . . . . . 11 1 . . . 5 . . . . . . . . . . . . . Part Schematic 36 | . . . . . . . . . . . 6 . . . . . 1 . 1 . 2 . . 13 . 1 . . . . 2 3 . 4 3 . . . . . . . Robot Schematic 17 | . . . . . . . . . . . 1 . . . . . 1 . . . 3 . . 3 . 2 . . . . 2 4 . . 1 . . . . . . . Robot Analysis 49 | . 5 . . . 4 . . . . . . . 7 . . . 1 . 4 . 1 . . . . . . . . . 5 4 . 13 1 4 . . . . . . Prototype ID Bank 55 | . 10 . . . 8 . 1 . . . 1 . . . . . . . . . . . . 3 . . . . 5 . 2 14 . 2 6 3 . . . . . . Open Door 16 | . . . . 1 . 1 . . . . . 1 . . . . . . . . . 1 . . . . . . 1 . . 2 . . . 4 . . 1 . 3 1 Open DSF 1 | . . . . . . . . . . . . . . . 1 . . . . . . . . . . . . . . . . . . . . . . . . . . . Level Access Points 2 | . . . . . . . . . . . . . . . . . . . 1 . . . . . . . . . . . . . . 1 . . . . . . . . Branch Access Points 4 | . . . . . . . . . . . . . . . . . . . 1 . . . . . . . . . . . 1 . . 1 . . . . . . 1 . Emergency Access Points 3 | . . . . . . . . . . 1 . . . . . . . . . . . . . . . . . . . . . . . 1 . . . . . . 1 . Machine Index 9 | . . . . . . . . . . . 1 . . . . . . . 1 . 1 . . . . 1 . . . . 1 . . 1 . 1 . . 1 . 1 . Terminal Index 6 | . . . . . . . . . . . . . 1 . . . 1 . . . 1 . . . . . . . . . . 1 . . . . . . 1 . . 1 Fabricator Index 4 | . . . . . . . . . . . . . 1 . . . . . . . 1 . . . . . . . . . . 2 . . . . . . . . . . Scanalyzer Index 2 | . . . . . . . . . . . . . 1 . . . . . . . . . . . . . . . . . . . . . 1 . . . . . . . Garrison Index 2 | . . . . . . . 1 . . . . . 1 . . . . . . . . . . . . . . . . . . . . . . . . . . . . . Alert Level 9 | . . . . . 1 . . . . . 1 . . . . . . . . . . . . . . . . . . . 1 1 . . 3 . . . . . 2 . Unreport Threat 6 | . . . . . . . . . . . . . . . . . . . . . . . . . . . . . . . . . . . 2 . . . . . 4 . Locate Traps 33 | . 1 . . . . . 2 . . . 4 . 4 . . . 2 . 3 . 2 . . . . 1 . . . . 3 2 . 1 2 3 . . . . 1 2 Disarm Traps 1 | . . . . . . . . . . . . . . . . . . . 1 . . . . . . . . . . . . . . . . . . . . . . . Reprogram Traps 15 | . . . . . . . . . . . . . . . . . . . 5 . 1 . . . . 1 . . . . . 3 . 2 2 . . . . . . 1 Dispatch Records 1 | . . . . . . . . . . . . . . . . . . . . . . . . . . . . . . . . 1 . . . . . . . . . . Security Status 2 | . . . . . . . . . . . . . . . . . . . . . . . . . . . . . . . . 1 . 1 . . . . . . . . Recall Investigation 3 | . . . . . . . . . . . . . . . . . . . 2 . . . . . . . . . . . . . . . . 1 . . . . . . Recall Extermination 6 | . . . . . . . . . . . . . . . . . . . 2 . . . . . . . . . . . . 1 . 2 . 1 . . . . . . Recall Reinforcements 3 | . . . . . . . . . . . . . . . . . . . . . . . . . . . . . . . . . . 1 1 . . . . . 1 . Recall Assault 1 | . . . . . . . . . . . . . . . . . . . . . . . . . . . . . . . . 1 . . . . . . . . . . Hauler Manifests 6 | . . . . . 1 . 1 . . . . . 1 . . . 1 . . . 1 . . . . . . . . . 1 . . . . . . . . . . . Zone Layout 45 | . 1 . . . 1 . . . . . . . 2 . . . 2 . 3 . . . . . . 1 . . . . 3 5 . 6 4 7 . . 3 . 4 3 Garrison Registry 8 | . . . . . . 1 . 1 . . . 1 . 2 . . . . . 1 . . . . . . . . . . . . . . . . 1 . . 1 . . Patrol Navigation 4 | . . . . . . . . . . 1 . . . 1 . . . . . 1 . . . . . . . . . . . . . . . . . . . 1 . . Security Stations 3 | . . . . . . . . . . . . . . 1 . . . . . 1 . . . . . . . . . . . . . . . . . . . 1 . . Derelict Proto ID Bank 1 | . . . 1 . . . . . . . . . . . . . . . . . . . . . . . . . . . . . . . . . . . . . . . Protovariant Controls 1 | . . . . . . . . . . . . . . . . . . . . . . . . . . . . . . . . . . . . . . . 1 . . . Disengage Seal 2 | . . . . . . . . . . . . . . . . . . . . . . . . . . . . . . . . . . . . . . . . . . 2 Fabricator Hacks 158 | . . . . . . . . . . . 12 . 10 . . . 16 . 16 . 20 . . . . 19 . . . . 3 44 . 14 . . . . 4 . . . Network Status 2 | . . . . . . . . . . . . . . . . . 1 . 1 . . . . . . . . . . . . . . . . . . . . . . . Load Schematic 76 | . . . . . . . . . . . 6 . 5 . . . 7 . 7 . 10 . . . . 9 . . . . 1 22 . 7 . . . . 2 . . . Build 80 | . . . . . . . . . . . 6 . 5 . . . 8 . 8 . 10 . . . . 10 . . . . 2 22 . 7 . . . . 2 . . . Repair Station Hacks 14 | . . . . . . . 2 . 2 . 4 . 4 . . . 2 . . . . . . . . . . . . . . . . . . . . . . . . . Scan Component 7 | . . . . . . . 1 . 1 . 2 . 2 . . . 1 . . . . . . . . . . . . . . . . . . . . . . . . . Repair 7 | . . . . . . . 1 . 1 . 2 . 2 . . . 1 . . . . . . . . . . . . . . . . . . . . . . . . . Recycling Unit Hacks 25 | . 2 . . . 1 . 1 . . . 4 . 3 . . . 3 . 3 . 2 . . . . . . . . . 4 2 . . . . . . . . . . Retrieve Components 25 | . 2 . . . 1 . 1 . . . 4 . 3 . . . 3 . 3 . 2 . . . . . . . . . 4 2 . . . . . . . . . . Scanalyzer 88 | . . . . . . . 12 . . . 3 . 8 . . . 1 . 15 . 6 . . . . 7 . . . . . . . 14 5 6 . 7 4 . . . Insert Component 53 | . . . . . . . 5 . . . 2 . 4 . . . 1 . 8 . 3 . . . . 4 . . . . . . . 9 5 6 . 4 2 . . . Analyze 35 | . . . . . . . 7 . . . 1 . 4 . . . . . 7 . 3 . . . . 3 . . . . . . . 5 . . . 3 2 . . . Garrison Access Hacks 18 | . . . . . 1 . 1 . 1 . 2 . 3 . . . . . 2 . 1 . . . . . . . . . 1 . . 3 1 1 . . 1 . . . Unlock Access 8 | . . . . . 1 . 1 . 1 . 1 . 1 . . . . . 1 . . . . . . . . . . . . . . . . 1 . . 1 . . . Seal Access 10 | . . . . . . . . . . . 1 . 2 . . . . . 1 . 1 . . . . . . . . . 1 . . 3 1 . . . . . . . Unauthorized Hacks 248 | . 13 . . . 9 1 12 2 . 2 20 1 16 3 . . 21 . 22 2 26 . . . . 9 . . . . 18 28 . 11 4 13 1 1 5 1 2 5 Terminals 134 | . 10 . . . 7 1 8 2 . 2 8 1 9 3 . . 8 . 15 2 11 . . . . 3 . . . . 9 10 . 5 3 6 1 . 2 1 2 5 Track 4 | . . . . . . . . . . . . . . 1 . . . . . . . . . . . . . . . . . 2 . . . . . . . . . 1 Assimilate 5 | . . . . . . . . . . . . . . . . . . . 1 . . . . . . . . . . . . . . . . 3 . . . . . 1 Botnet 40 | . 2 . . . 3 . 2 1 . 1 2 . 2 1 . . 2 . 2 1 3 . . . . 2 . . . . 2 2 . 2 2 2 . . 2 . 2 2 Disrupt 6 | . . . . . . . . . . . . . . . . . . . 1 . . . . . . . . . . . . 5 . . . . . . . . . . Operators 13 | . . . . . 1 . 1 . . . 1 . 1 . . . . . 1 . 1 . . . . 1 . . . . 1 1 . 1 1 1 . . . . . 1 Skim 55 | . 5 . . . 3 . 5 . . . 5 . 6 . . . 6 . 10 . 7 . . . . . . . . . 6 . . 2 . . . . . . . . Search 3 | . 3 . . . . . . . . . . . . . . . . . . . . . . . . . . . . . . . . . . . . . . . . . Override 8 | . . . . . . 1 . 1 . 1 . 1 . 1 . . . . . 1 . . . . . . . . . . . . . . . . 1 . . 1 . . Fabricators 51 | . . . . . . . . . . . 4 . 1 . . . 7 . 5 . 9 . . . . 6 . . . . 2 13 . 3 . . . . 1 . . . Prioritize 14 | . . . . . . . . . . . . . . . . . 2 . 1 . 4 . . . . 1 . . . . . 5 . 1 . . . . . . . . Liberate 35 | . . . . . . . . . . . 4 . 1 . . . 4 . 4 . 5 . . . . 4 . . . . 2 8 . 2 . . . . 1 . . . Haulers 2 | . . . . . . . . . . . . . . . . . 1 . . . . . . . . 1 . . . . . . . . . . . . . . . . Repair Stations 5 | . 1 . . . . . . . . . 1 . . . . . 1 . . . . . . . . . . . . . . . . 2 . . . . . . . . Mechanics 2 | . . . . . . . . . . . . . . . . . 1 . . . . . . . . . . . . . . . . 1 . . . . . . . . Patch 3 | . 1 . . . . . . . . . 1 . . . . . . . . . . . . . . . . . . . . . . 1 . . . . . . . . Recycling Units 29 | . 2 . . . 1 . 1 . . . 5 . 3 . . . 2 . . . 4 . . . . . . . . . 6 5 . . . . . . . . . . Reject 11 | . . . . . . . . . . . 1 . 1 . . . 2 . . . 2 . . . . . . . . . 3 2 . . . . . . . . . . Recyclers 4 | . . . . . . . . . . . . . 1 . . . . . . . 1 . . . . . . . . . 1 1 . . . . . . . . . . Mask 7 | . . . . . . . . . . . 1 . 1 . . . . . . . 1 . . . . . . . . . 2 2 . . . . . . . . . . Tunnel 7 | . 2 . . . 1 . 1 . . . 3 . . . . . . . . . . . . . . . . . . . . . . . . . . . . . . . Scanalyzers 19 | . . . . . . . 2 . . . 2 . 3 . . . 2 . 2 . 2 . . . . . . . . . 1 . . 1 1 1 . 1 1 . . . Researchers 3 | . . . . . . . . . . . . . . . . . . . . . . . . . . . . . . . . . . . 1 1 . . 1 . . . Extract 16 | . . . . . . . 2 . . . 2 . 3 . . . 2 . 2 . 2 . . . . . . . . . 1 . . 1 . . . 1 . . . . Garrison Access 10 | . . . . . 1 . 1 . . . . . . . . . 1 . . . . . . . . . . . . . . . . . . 6 . . 1 . . . Broadcast 1 | . . . . . . . . . . . . . . . . . . . . . . . . . . . . . . . . . . . . 1 . . . . . . Decoy 1 | . . . . . . . . . . . . . . . . . . . . . . . . . . . . . . . . . . . . 1 . . . . . . Redirect 1 | . . . . . . . . . . . . . . . . . . . . . . . . . . . . . . . . . . . . 1 . . . . . . Reprogram 4 | . . . . . 1 . 1 . . . . . . . . . . . . . . . . . . . . . . . . . . . . 1 . . 1 . . . Intercept 1 | . . . . . . . . . . . . . . . . . . . . . . . . . . . . . . . . . . . . 1 . . . . . . Watchers 1 | . . . . . . . . . . . . . . . . . . . . . . . . . . . . . . . . . . . . 1 . . . . . . Jam 1 | . . . . . . . . . . . . . . . . . 1 . . . . . . . . . . . . . . . . . . . . . . . . . Data Cores Recovered 12 | . . . . . 1 . . . . . . . 2 . . . 1 . . . . . . . . 2 . . . . 1 1 . 1 1 . . . 1 . . 1 Used 7 | . . . . . . . . . . . . . 2 . . . . . . . . . . . . 1 . . . . 1 1 . . 1 . . . . . . 1 Hacking Detections 220 | . 9 . . . 9 2 9 1 1 3 20 1 22 3 . . 17 . 19 2 17 . . . 1 9 . . . . 12 10 . 14 10 10 1 1 7 1 5 4 Full Trace Events 20 | . . . . . . . 1 . 1 2 3 . 1 . . . 1 . 4 1 1 . . . . 1 . . . . . . . . . 2 . . 2 . . . Feedback Events 3 | . . . . . . . . . . . . . . . . . . . . . 1 . . . . . . . . . . . . . . 1 . . 1 . . . Corruption 2 | . . . . . . . . . . . . . . . . . . . . . . . . . . . . . . . . . . . . 1 . . 1 . . . Hackware Fried 1 | . . . . . . . . . . . . . . . . . . . . . 1 . . . . . . . . . . . . . . . . . . . . . Feedback Blocked 1 | . . . . . . . . . . . . . . . . . . . . . . . . . . . . . . . . . . . . . . . 1 . . . Robot Schematics Acquired 22 | . . . . . . . . . . . 1 . . . . . 1 . . . 3 . . 3 . 2 . . . . 2 4 . . 6 . . . . . . . Robots Built 72 | . . . . . . . . . . . 4 . . . . . 6 . 7 . 17 . . . . 7 . . . . 2 28 . 1 . . . . . . . . Authchips 16 | . . . . . . . . . . . 2 . . . . . 3 . 3 . 8 . . . . . . . . . . . . . . . . . . . . . Time 3335 | . . . . . . . . . . . 134 . . . . . 201 . 366 . 413 . . . . 434 . . . . 84 1665 . 38 . . . . . . . . Total Robot Build Rating 370 | . . . . . . . . . . . 16 . . . . . 24 . 25 . 74 . . . . 35 . . . . 12 179 . 5 . . . . . . . . Part Schematics Acquired 156 | . . . . . . . 17 . . . 10 . 26 . . . 11 . 19 . 10 . . 13 . 4 . . . . 3 3 . 11 17 5 . 3 4 . . . Parts Built 52 | . . . . . . . . . . . 6 . 7 . . . 7 . 4 . 2 . . . . 7 . . . . 2 8 . 7 . . . . 2 . . . Authchips 4 | . . . . . . . . . . . 1 . . . . . 3 . . . . . . . . . . . . . . . . . . . . . . . . . Time 2607 | . . . . . . . . . . . 252 . 260 . . . 317 . 188 . 117 . . . . 344 . . . . 117 397 . 393 . . . . 222 . . . Total Part Build Rating 317 | . . . . . . . . . . . 32 . 31 . . . 40 . 21 . 14 . . . . 50 . . . . 14 51 . 46 . . . . 18 . . . Parts Repaired 6 | . . . . . . . 1 . 1 . 2 . 1 . . . 1 . . . . . . . . . . . . . . . . . . . . . . . . . Time 267 | . . . . . . . 26 . 50 . 63 . 94 . . . 34 . . . . . . . . . . . . . . . . . . . . . . . . . Parts Recycled . | . . . . . . . . . . . . . . . . . . . . . . . . . . . . . . . . . . . . . . . . . . . Recycled Matter . | . . . . . . . . . . . . . . . . . . . . . . . . . . . . . . . . . . . . . . . . . . . Retrieved Matter . | . . . . . . . . . . . . . . . . . . . . . . . . . . . . . . . . . . . . . . . . . . . Retrieved Components 133 | . 19 . . . 3 . 3 . . . 26 . 14 . . . 30 . 17 . 5 . . . . . . . . . 15 1 . . . . . . . . . . Parts Scanalyzed 31 | . . . . . . . 5 . . . 1 . 4 . . . 1 . 6 . 3 . . . . 3 . . . . . . . 5 . . . 1 2 . . . Part Schematics Acquired 30 | . . . . . . . 5 . . . 1 . 4 . . . . . 6 . 3 . . . . 3 . . . . . . . 4 . . . 2 2 . . . Parts Damaged 3 | . . . . . . . 1 . . . . . . . . . 1 . . . . . . . . . . . . . . . . 1 . . . . . . . . Bothacking | -11 -10 -10 -10 -9 -8 -8 -8 -8 -8 -8 -7 -7 -7 -7 -7 -7 -6 -6 -6 -6 -6 -6 -6 -6 -5 -5 -5 -5 -5 -4 -4 -4 -4 -3 -3 -3 -3 -2 -2 -2 -1 -1 ------------ Run | Yrd Mat Min Exi Min Mat Gar Mat Gar Mat Gar Fac Gar Fac Gar Fac DSF Fac Was Fac Gar Fac Low Low Dat Pro Fac Upp Upp War Pro Fac Arm Lab Res Qua Sec Gar Res Tes Gar Acc Com Used RIF Installer . | . . . . . . . . . . . . . . . . . . . . . . . . . . . . . . . . . . . . . . . . . . . Robots Hacked 15 | . . . . . . . . . . . . . . . . . 1 . . . . . . . . . . . . . . . 1 . 4 2 . 5 . 1 . 1 Non-combat 1 | . . . . . . . . . . . . . . . . . 1 . . . . . . . . . . . . . . . . . . . . . . . . . Combat 14 | . . . . . . . . . . . . . . . . . . . . . . . . . . . . . . . . . 1 . 4 2 . 5 . 1 . 1 Robot Hacks Applied 16 | . . . . . . . . . . . . . . . . . 2 . . . . . . . . . . . . . . . 1 . 4 2 . 5 . 1 . 1 parse_system 15 | . . . . . . . . . . . . . . . . . 1 . . . . . . . . . . . . . . . 1 . 4 2 . 5 . 1 . 1 find_chute 1 | . . . . . . . . . . . . . . . . . 1 . . . . . . . . . . . . . . . . . . . . . . . . . Relay Couplers Released 192 | . . . . . . 24 . 25 . 29 4 22 . 19 . . . . . 20 . . . . . . . . . . . . . 3 . 3 19 1 . 23 . . Machine Destruction 168 | . . . . . . 24 . 22 . 25 . 18 . 19 . . . . . 20 . . . . . . . . . . . . . . . . 19 1 . 20 . . Programmers 24 | . . . . . . . . 3 . 4 4 4 . . . . . . . . . . . . . . . . . . . . . 3 . 3 . . . 3 . . Fabnet Peak Effective % . | . . . . . . . . . . . . . . . . . . . . . . . . . . . . . . . . . . . . . . . . . . . Robots Rewired 61 | . . . 3 . . 3 . 6 . 19 . 5 . 9 . . . . . 3 . . . . . 1 . . . . . 7 . . . . 2 . . 3 . . Allies Hacked 25 | . . . . . . . . . . . 2 1 1 . . . 1 . 1 1 . . . . . . . . 1 . 1 8 1 4 3 . . . . . . . Hacks Repelled 9 | . . . . . . . . . . . . . . . . . . . 1 . . . . . . . . . . . . 2 . 5 . . . 1 . . . . Allies | -11 -10 -10 -10 -9 -8 -8 -8 -8 -8 -8 -7 -7 -7 -7 -7 -7 -6 -6 -6 -6 -6 -6 -6 -6 -5 -5 -5 -5 -5 -4 -4 -4 -4 -3 -3 -3 -3 -2 -2 -2 -1 -1 -------- Run | Yrd Mat Min Exi Min Mat Gar Mat Gar Mat Gar Fac Gar Fac Gar Fac DSF Fac Was Fac Gar Fac Low Low Dat Pro Fac Upp Upp War Pro Fac Arm Lab Res Qua Sec Gar Res Tes Gar Acc Com Total Allies 197 | . . . 3 1 . 3 . 6 . 21 19 6 . 9 . . 16 1 18 4 20 . . . . 8 . . 1 . 2 41 1 5 . 2 4 . 1 5 . . Largest Group 24 | . . . 3 4 4 3 2 6 2 12 14 12 13 3 1 1 7 1 7 4 15 15 15 15 14 14 7 7 7 1 2 24 24 23 17 2 4 4 1 4 4 . Highest-Rated Group 1209 | . . . 50 81 81 90 65 112 30 240 350 308 311 63 21 21 221 31 200 191 558 558 558 558 507 526 242 242 257 25 98 1198 1209 1162 780 158 327 327 58 338 338 . Highest-Rated Ally 116 | . . . 21 31 31 39 39 39 20 39 39 37 37 21 21 21 37 31 37 62 62 43 43 43 43 49 49 49 49 25 49 116 116 116 65 113 95 95 58 89 89 . Total Orders 49 | . . . . . . . 2 . 2 . . . 1 . . . 4 . . . 1 . . 1 1 2 . . 2 . 2 1 24 3 3 . . . . . . . STAY 6 | . . . . . . . 1 . 1 . . . 1 . . . . . . . . . . . . . . . . . . . 3 . . . . . . . . . ROAM 1 | . . . . . . . . . . . . . . . . . 1 . . . . . . . . . . . . . . . . . . . . . . . . . FOLLOW 22 | . . . . . . . 1 . 1 . . . . . . . . . . . . . . . . . . . . . . . 19 1 . . . . . . . . AID 15 | . . . . . . . . . . . . . . . . . . . . . 1 . . 1 1 2 . . 2 . . 1 2 2 3 . . . . . . . EXPLORE 3 | . . . . . . . . . . . . . . . . . 2 . . . . . . . . . . . . . 1 . . . . . . . . . . . RETURN 2 | . . . . . . . . . . . . . . . . . 1 . . . . . . . . . . . . . 1 . . . . . . . . . . . Ally Attacks 1794 | . . . . 4 24 24 7 15 4 112 82 79 82 30 . 1 185 6 99 30 123 . . 32 34 88 . 20 30 . 17 133 47 176 163 10 19 43 2 15 58 . Total Damage 45440 | . . . . 48 280 275 74 310 152 1858 1773 1359 1416 473 . 33 2655 107 1896 919 3409 . . 1000 695 2162 . 425 1751 . 695 4670 1455 5003 4068 603 801 2205 92 387 2391 . Kills 288 | . . . . 1 4 6 2 4 1 20 25 17 13 6 . . 14 1 12 9 23 . . 3 5 16 . 6 7 . 4 18 2 30 6 5 4 8 . 2 14 . Allies Corrupted 12 | . . . . . . . . . . . . . . . . . . . . 1 . . . . . . . . . . 1 6 . 1 2 . . . . . 1 . Allies Melted 3 | . . . . . . . . . . . . . . . . . . . 1 . 1 . . . . . . . . . . . . . . . . 1 . . . . Intel | -11 -10 -10 -10 -9 -8 -8 -8 -8 -8 -8 -7 -7 -7 -7 -7 -7 -6 -6 -6 -6 -6 -6 -6 -6 -5 -5 -5 -5 -5 -4 -4 -4 -4 -3 -3 -3 -3 -2 -2 -2 -1 -1 ------- Run | Yrd Mat Min Exi Min Mat Gar Mat Gar Mat Gar Fac Gar Fac Gar Fac DSF Fac Was Fac Gar Fac Low Low Dat Pro Fac Upp Upp War Pro Fac Arm Lab Res Qua Sec Gar Res Tes Gar Acc Com Robot Analysis Total 49 | . 5 . . . 4 . . . . . . . 7 . . . 1 . 4 . 1 . . . . . . . . . 5 4 . 13 1 4 . . . . . . Derelict Logs Recovered 7 | . . 2 . . . . . . . . . . . . . . . . . . . . 1 . 1 . 1 1 . 1 . . . . . . . . . . . . Drone Launches 4 | . . . . . . . . . . . . . . . . . 2 . . . . . . . . . . . . . 2 . . . . . . . . . . . Drone Recoveries 2 | . . . . . . . . . . . . . . . . . . . . . . . . . . . . . . . 2 . . . . . . . . . . . Exploration | -11 -10 -10 -10 -9 -8 -8 -8 -8 -8 -8 -7 -7 -7 -7 -7 -7 -6 -6 -6 -6 -6 -6 -6 -6 -5 -5 -5 -5 -5 -4 -4 -4 -4 -3 -3 -3 -3 -2 -2 -2 -1 -1 ------------- Run | Yrd Mat Min Exi Min Mat Gar Mat Gar Mat Gar Fac Gar Fac Gar Fac DSF Fac Was Fac Gar Fac Low Low Dat Pro Fac Upp Upp War Pro Fac Arm Lab Res Qua Sec Gar Res Tes Gar Acc Com Turns Passed 68150 | 60 1893 959 544 290 933 1497 2828 2007 308 2882 6440 1407 4736 2480 91 496 3762 309 3712 1904 2679 258 324 280 721 1246 274 611 1185 626 2339 2897 481 1899 2128 3374 971 1749 1945 1206 780 639 Spaces Moved 30156 | 34 1024 572 327 180 476 594 1076 756 87 1124 2328 514 1775 853 37 178 1737 143 1692 791 1248 148 197 121 336 622 172 353 572 356 943 1352 248 870 1000 1543 503 1003 983 510 412 366 Core 2 | 2 . . . . . . . . . . . . . . . . . . . . . . . . . . . . . . . . . . . . . . . . . . Treads 30116 | 32 1024 572 327 180 476 594 1076 756 87 1124 2328 514 1775 853 37 178 1737 143 1692 791 1248 148 197 121 336 622 172 353 572 356 943 1352 248 870 1000 1543 503 1003 983 510 412 328 Legs . | . . . . . . . . . . . . . . . . . . . . . . . . . . . . . . . . . . . . . . . . . . . Wheels . | . . . . . . . . . . . . . . . . . . . . . . . . . . . . . . . . . . . . . . . . . . . Hover . | . . . . . . . . . . . . . . . . . . . . . . . . . . . . . . . . . . . . . . . . . . . Flight . | . . . . . . . . . . . . . . . . . . . . . . . . . . . . . . . . . . . . . . . . . . . Fastest Speed 50 | 50 160 160 160 160 160 160 235 235 230 233 225 236 236 240 240 240 160 160 160 160 160 160 160 160 160 160 160 160 160 160 160 160 160 160 160 160 160 160 160 160 160 160 Average Speed 187 | 153 160 160 160 160 160 218 235 235 232 233 230 236 239 240 240 240 181 160 165 213 185 160 160 160 160 160 160 160 160 160 167 167 160 160 160 160 160 160 160 160 160 160 Slowest Speed 320 | 160 160 160 160 160 160 320 240 235 235 233 320 236 240 240 240 240 240 160 240 240 240 160 160 160 160 163 160 160 160 160 173 173 160 160 160 160 160 160 160 160 160 160 Overloaded Moves . | . . . . . . . . . . . . . . . . . . . . . . . . . . . . . . . . . . . . . . . . . . . Propulsion Burnouts . | . . . . . . . . . . . . . . . . . . . . . . . . . . . . . . . . . . . . . . . . . . . Robots Hopped . | . . . . . . . . . . . . . . . . . . . . . . . . . . . . . . . . . . . . . . . . . . . Cave-ins Triggered 1 | . . . . . . . . . . . . . . . . . . . . . . . . . . . . . . . . . 1 . . . . . . . . . Teleports 1 | . . . . . . . . . . . . . . . . . . . . . . . . . . . . . . . . . . . . . . . 1 . . . Microwarps 2 | . . . . . . . . . . . . . . . . . . . . . . . . . . . . . . . . . . . . . . . . . . 2 Exploration Rate (%) 62 | 4 98 98 74 39 71 73 94 89 17 93 67 82 49 94 2 96 55 97 56 88 45 34 47 77 63 21 38 54 67 59 33 73 90 38 93 88 82 45 91 76 13 23 Regions Visited 42 Branch Regions 17 Pre-discovered Areas 26 | . 3 1 1 . 1 . 5 . . . 4 . . . . . . . 5 . 2 1 1 1 . . . . . . 1 . . . . . . . . . . . Known Exits Taken 31 | 1 1 1 1 1 1 . 1 . 1 . 1 . 1 . 1 . . . 1 . 1 1 1 1 1 1 1 1 1 1 1 1 1 1 1 1 . 1 1 . 1 . Unknown Exits Taken . | . . . . . . . . . . . . . . . . . . . . . . . . . . . . . . . . . . . . . . . . . . . Scrap Searched 12 | . . . . . . . . . . . . . . . . . . . . . . 2 3 . . . 1 3 . 3 . . . . . . . . . . . . Spaces Dug 123 | . . . . . . . . 1 . 2 . . 1 . . . 2 . . 3 . 2 . . . . . . . . 51 8 6 26 . 6 . . . 4 . 11 Terrain Destroyed 1422 | . . . . . 2 8 2 7 2 56 . . 1 . . . 15 . 156 45 33 2 5 . 5 35 . 17 81 10 187 44 40 115 117 127 49 27 55 114 52 13 Melee 3 | . . . . . . . . . . . . . 1 . . . 2 . . . . . . . . . . . . . . . . . . . . . . . . . Projectile 586 | . . . . . 2 8 2 7 2 5 . . . . . . . . 69 13 33 2 5 . 5 35 . 17 13 10 148 36 6 10 2 16 16 5 16 38 52 13 AOE 833 | . . . . . . . . . . 51 . . . . . . 13 . 87 32 . . . . . . . . 68 . 39 8 34 105 115 111 33 22 39 76 . . Terrain Rammed . | . . . . . . . . . . . . . . . . . . . . . . . . . . . . . . . . . . . . . . . . . . . Walls Destroyed . | . . . . . . . . . . . . . . . . . . . . . . . . . . . . . . . . . . . . . . . . . . . Machines Disabled . | . . . . . . . . . . . . . . . . . . . . . . . . . . . . . . . . . . . . . . . . . . . Actions | -11 -10 -10 -10 -9 -8 -8 -8 -8 -8 -8 -7 -7 -7 -7 -7 -7 -6 -6 -6 -6 -6 -6 -6 -6 -5 -5 -5 -5 -5 -4 -4 -4 -4 -3 -3 -3 -3 -2 -2 -2 -1 -1 --------- Run | Yrd Mat Min Exi Min Mat Gar Mat Gar Mat Gar Fac Gar Fac Gar Fac DSF Fac Was Fac Gar Fac Low Low Dat Pro Fac Upp Upp War Pro Fac Arm Lab Res Qua Sec Gar Res Tes Gar Acc Com Total 38975 | 39 1185 608 341 183 594 704 1268 879 154 1263 3099 616 2109 1093 39 220 2170 185 2370 902 1512 167 201 204 509 800 171 379 794 391 1440 1805 317 1365 1474 2383 665 1142 1356 898 540 441 Wait 4450 | . 84 31 . . 67 17 86 29 39 2 481 8 114 26 . 4 200 15 466 15 183 10 . 71 164 94 . 4 140 21 233 227 21 384 229 427 36 10 212 269 18 13 Move 30083 | 33 1023 571 326 179 476 593 1076 755 87 1123 2327 513 1775 852 36 177 1737 142 1691 790 1247 147 196 120 335 621 171 352 571 355 942 1351 247 869 999 1542 502 1002 982 509 411 330 Hop . | . . . . . . . . . . . . . . . . . . . . . . . . . . . . . . . . . . . . . . . . . . . Pick Up 386 | . 14 1 . 1 8 9 2 . . 5 30 1 33 15 . 5 32 1 26 11 7 4 1 3 . 11 . 6 18 1 25 15 11 13 13 30 1 7 15 . 11 . Fast Attach 108 | 6 5 . . . 4 3 4 . 3 6 19 1 2 . . . 5 4 3 . . . . . . 4 . . 3 . 3 7 . 1 5 9 . 4 6 . 1 . Attach 154 | . . . . . 3 . 1 . . . 6 . 1 3 . 1 9 . 5 . 8 1 . . . 4 . . 4 . 12 5 5 5 8 16 5 11 17 . 10 14 Detach 55 | . . . . . . . . . . . 3 . . . . . . . . . . . . . . 1 . . 3 . 8 2 2 1 4 4 4 5 6 . 1 11 Swap 617 | . 2 . . 1 1 10 15 2 1 11 44 7 58 27 3 11 59 1 40 6 20 3 1 3 7 11 . 4 6 4 49 37 6 22 35 64 6 3 19 9 4 5 Drop 375 | . 8 . . 2 9 5 4 . 4 8 36 . 29 11 . 5 28 . 24 7 6 1 1 5 . 12 . 2 22 1 24 21 9 11 14 27 1 4 22 . 10 2 Fire 2413 | . 44 5 4 . 24 47 53 68 19 64 147 52 74 83 . 15 96 22 113 60 40 1 2 1 3 27 . 11 27 9 142 129 16 59 165 263 110 96 76 111 74 61 Melee 66 | . . . . . . . . 7 . 31 . 14 1 10 . . 2 . . . . . . 1 . . . . . . . . . . . . . . . . . . Ram . | . . . . . . . . . . . . . . . . . . . . . . . . . . . . . . . . . . . . . . . . . . . Kick . | . . . . . . . . . . . . . . . . . . . . . . . . . . . . . . . . . . . . . . . . . . . Crush 31 | . 5 . . . 2 . . . 1 . 3 5 2 . . . 2 . 2 . 1 . . . . 1 . . . . 2 . . . 2 1 . . 1 . . 1 Escape Stasis 65 | . . . . . . 8 . 18 . 13 2 6 2 4 . 2 . . . 6 . . . . . . . . . . . . . . . . . . . . . 4 Rewire 49 | . . . 11 . . 9 . . . . 1 8 . 1 . . . . . 7 . . . . . 1 . . . . . 11 . . . . . . . . . . Trap 72 | . . . . . . 3 27 . . . . 1 18 23 . . . . . . . . . . . . . . . . . . . . . . . . . . . . Miscellaneous 51 | . . . . . . . . . . . . . . 38 . . . . . . . . . . . 13 . . . . . . . . . . . . . . . . Route ------- -11/Scrapyard -10/Materials (discovered 5 exits: *Mat x3 / *Min / Sub) -10/Mines (discovered 3 exits: *Mat x2 / *Exi) -10/Exiles (discovered 2 exits: *Min x2) -9/Mines -8/Materials (discovered 3 exits: *Fac x2 / Gar) -8/Garrison (discovered 3 exits: *Mat x3) -8/Materials (discovered 4 exits: *Fac x3 / Gar) -8/Garrison (discovered 3 exits: *Mat x3) -8/Materials -8/Garrison (discovered 3 exits: *Fac x3) -7/Factory (discovered 7 exits: *Fac x3 / *Sto / *Low x2 / Gar) -7/Garrison (discovered 4 exits: *Fac x4) -7/Factory (discovered 8 exits: *Fac x4 / *Sto / *Low x2 / Gar) -7/Garrison (discovered 3 exits: *Fac x3) -7/Factory (discovered 4 exits: Fac / Low x2 / DSF) -7/DSF -6/Factory (discovered 6 exits: *Fac x4 / Low x2) -6/Waste -6/Factory (discovered 7 exits: Fac x4 / Low x2 / Gar) -6/Garrison (discovered 4 exits: *Fac x3 / *Fac) -6/Factory (discovered 6 exits: *Fac x4 / *Low x2) -6/Lower Caves -6/Lower Caves (discovered 2 exits: Fac / *Dat) -6/Data Miner -5/Proximity Caves -5/Factory (discovered 4 exits: *Fac x2 / *Upp x2) -5/Upper Caves -5/Upper Caves (discovered 2 exits: *Fac / *War) -5/Warlord -4/Proximity Caves -4/Factory (discovered 7 exits: Res x4 / *Upp x2 / *Arm) -4/Armory (discovered 2 exits: *Res / *Lab) -4/Lab -3/Research (discovered 5 exits: Res x3 / *Qua x2) -3/Quarantine (discovered 2 exits: *Res / *Sec) -3/Section 7 (discovered 2 exits: *Res / Gar) -3/Garrison (discovered 3 exits: *Res x3) -2/Research (discovered 5 exits: *Acc x3 / *Tes x2) -2/Testing (discovered 2 exits: *Acc / Gar) -2/Garrison (discovered 3 exits: *Acc x3) -1/Access (discovered 2 exits: Sur / *Com) -1/Command Free Derelict Territories History --------- Turn | Location | Event 37 | -11/Scrapyard | Identified exit to Materials 37 | -11/Scrapyard | Discovered exit to Materials (range 15) 61 | -11/Scrapyard | Entered Materials 61 | -10/Materials | Evolved 1 slot: Weapon x1 280 | -10/Materials | Identified exit to Materials 280 | -10/Materials | Discovered exit to Materials (range 7) 400 | -10/Materials | Build established: Hacker-Tank 445 | -10/Materials | Identified exit to Mines 445 | -10/Materials | Discovered exit to Mines (range 11) 542 | -10/Materials | Discovered exit to Materials (range 16) 898 | -10/Materials | Identified exit to Subcaves 934 | -10/Materials | Learned location of 1 exit from Recycling 959 | -10/Materials | Learned location of Mines (-10) 973 | -10/Materials | Learned Storage garrison access intel 976 | -10/Materials | Loaded intel: 8 terminal locations 984 | -10/Materials | Learned Materials emergency access door positions 998 | -10/Materials | Learned location of 2 exits from Subcaves 1954 | -10/Materials | Entered Mines 1955 | -10/Mines | Learned location of Storage (-7) 2025 | -10/Mines | Deemed a non-threat by the Exiles lab entrance 2025 | -10/Mines | Identified exit to Exiles 2025 | -10/Mines | Discovered exit to Exiles (range 5) 2105 | -10/Mines | Learned Materials emergency access door positions 2247 | -10/Mines | Discovered exit to Materials (range 7) 2324 | -10/Mines | A weapon hastily lodged in a ceiling crevice suddenly fell to the ground 2357 | -10/Mines | Discovered exit to Materials (range 6) 2913 | -10/Mines | Entered Exiles 2913 | -10/Exiles | Found Exiles lab destroyed 2914 | -10/Exiles | Identified exit to Mines 3119 | -10/Exiles | Learned location of Zion (-7) 3301 | -10/Exiles | Opened EX-Vault 3457 | -10/Exiles | Entered Mines 3457 | -9/Mines | Accompanied by 3 allies 3540 | -9/Mines | Met a Derelict shopkeep closing up shop 3568 | -9/Mines | Identified exit to Materials 3568 | -9/Mines | Discovered exit to Materials (range 9) 3601 | -9/Mines | Received a Mining Laser from a helpful Derelict 3677 | -9/Mines | Assembled infested the area 3747 | -9/Mines | Entered Materials 3747 | -8/Materials | Accompanied by 4 allies 3747 | -8/Materials | Evolved 4 slots: Propulsion x1, Utility x3 4168 | -8/Materials | Identified exit to Factory 4168 | -8/Materials | Discovered exit to Factory (range 14) 4508 | -8/Materials | Discovered exit to Factory (range 15) 4579 | -8/Materials | Garrison activated, responded to threat 4623 | -8/Materials | Identified exit to Garrison 4680 | -8/Materials | Entered Garrison 4759 | -8/Garrison | Destroyed 7 combat bots 4914 | -8/Garrison | Identified exit to Materials 4914 | -8/Garrison | Discovered exit to Materials (range 34) 4914 | -8/Garrison | Discovered exit to Materials (range 51) 4914 | -8/Garrison | Discovered exit to Materials (range 74) 4934 | -8/Garrison | Triggered checkpoint 5172 | -8/Garrison | Triggered checkpoint 5343 | -8/Garrison | Garrison Relay disabled 5428 | -8/Garrison | Triggered checkpoint 5486 | -8/Garrison | Triggered checkpoint 5560 | -8/Garrison | Triggered checkpoint 5572 | -8/Garrison | Garrison Relay disabled 5686 | -8/Garrison | Garrison Relay disabled 5808 | -8/Garrison | Triggered checkpoint 5872 | -8/Garrison | Triggered checkpoint 5909 | -8/Garrison | Garrison Relay disabled 6096 | -8/Garrison | Garrison Relay disabled 6177 | -8/Garrison | Entered Materials 6177 | -8/Materials | Accompanied by 2 allies 6628 | -8/Materials | Discovered exit to Factory (range 7) 7274 | -8/Materials | Learned location of 1 exit from Storage 7296 | -8/Materials | Discovered exit to Factory (range 7) 7330 | -8/Materials | Learned Storage emergency access door positions 7346 | -8/Materials | Learned location of Extension (-5) 7370 | -8/Materials | Learned location of 1 exit from Lower Caves 7543 | -8/Materials | Discovered exit to Factory (range 4) 8058 | -8/Materials | Repaired Lgt. Treads 8934 | -8/Materials | Garrison activated, responded to threat 8954 | -8/Materials | Identified exit to Garrison 9005 | -8/Materials | Entered Garrison 9005 | -8/Garrison | Accompanied by 2 allies 9091 | -8/Garrison | Triggered checkpoint 9120 | -8/Garrison | Garrison Relay disabled 9263 | -8/Garrison | Triggered checkpoint 9264 | -8/Garrison | Triggered checkpoint 9396 | -8/Garrison | Destroyed 8 combat bots 9490 | -8/Garrison | Triggered checkpoint 9501 | -8/Garrison | Identified exit to Materials 9501 | -8/Garrison | Discovered exit to Materials (range 13) 9731 | -8/Garrison | Triggered checkpoint 9851 | -8/Garrison | Discovered exit to Materials (range 13) 9905 | -8/Garrison | Triggered checkpoint 9955 | -8/Garrison | Triggered checkpoint 9955 | -8/Garrison | Garrison Relay disabled 9985 | -8/Garrison | Discovered exit to Materials (range 51) 9985 | -8/Garrison | Discovered exit to Materials (range 12) 9985 | -8/Garrison | Discovered exit to Materials (range 68) 10277 | -8/Garrison | Triggered checkpoint 10309 | -8/Garrison | Triggered checkpoint 10327 | -8/Garrison | Garrison Relay disabled 10445 | -8/Garrison | Triggered checkpoint 10475 | -8/Garrison | Garrison Relay disabled 11012 | -8/Garrison | Entered Materials 11012 | -8/Materials | Accompanied by 2 allies 11263 | -8/Materials | Garrison activated, responded to threat 11275 | -8/Materials | Repaired Lgt. Angular Momentum Engine 11320 | -8/Materials | Identified exit to Garrison 11320 | -8/Materials | Entered Garrison 11332 | -8/Garrison | Triggered checkpoint 11375 | -8/Garrison | Garrison Relay disabled 11478 | -8/Garrison | Triggered checkpoint 11592 | -8/Garrison | Rescued a captive Derelict 11611 | -8/Garrison | Rescued a captive Derelict 11824 | -8/Garrison | Triggered checkpoint 11846 | -8/Garrison | Triggered checkpoint 11856 | -8/Garrison | Triggered checkpoint 11956 | -8/Garrison | Triggered checkpoint 12043 | -8/Garrison | Build established: Commander-Tank 12254 | -8/Garrison | Garrison Relay disabled 12256 | -8/Garrison | Garrison Relay disabled 12333 | -8/Garrison | Discovered exit to Factory (range 6) 12545 | -8/Garrison | Discovered exit to Factory (range 9) 12714 | -8/Garrison | Triggered checkpoint 12715 | -8/Garrison | Garrison Relay disabled 13046 | -8/Garrison | Phase Generator disabled 13290 | -8/Garrison | Discovered exit to Factory (range 10) 13440 | -8/Garrison | Garrison Relay disabled 13480 | -8/Garrison | Triggered checkpoint 13526 | -8/Garrison | Triggered checkpoint 13554 | -8/Garrison | Triggered checkpoint 13846 | -8/Garrison | Garrison Relay disabled 14202 | -8/Garrison | Entered Factory 14202 | -7/Factory | Accompanied by 7 allies 14202 | -7/Factory | Evolved 2 slots: Power x1, Propulsion x1 14567 | -7/Factory | P-60 Hacker assimilated allied Rogue 3i 14583 | -7/Factory | Lost 3 allies 14711 | -7/Factory | Garrison activated, responded to threat 14856 | -7/Factory | Build established: Hacker-Tank 16287 | -7/Factory | Repaired Adv. Treads 16799 | -7/Factory | Identified exit to Factory 16799 | -7/Factory | Discovered exit to Factory (range 14) 17532 | -7/Factory | Found Prototype Launcher 17548 | -7/Factory | Identified Rocket Array 17807 | -7/Factory | Fabricated Imp. Hardlight Generator? 18095 | -7/Factory | Identified exit to Storage 18095 | -7/Factory | Discovered exit to Storage (range 7) 18188 | -7/Factory | Discovered exit to Factory (range 12) 18639 | -7/Factory | Repaired Med. Treads 18893 | -7/Factory | Identified exit to Lower Caves 18893 | -7/Factory | Discovered exit to Lower Caves (range 7) 18941 | -7/Factory | Fabricated Imp. Heavy Machine Gun (x1) 19011 | -7/Factory | Fabricated Imp. Thermal Shield (x2) 19091 | -7/Factory | Fabricated Imp. Heavy Machine Gun (x1) 19703 | -7/Factory | Identified exit to Garrison 19803 | -7/Factory | Garrison activated, responded to threat 19851 | -7/Factory | Fabricated P-60 Hacker (x2) 19921 | -7/Factory | Fabricated P-60 Hacker? 20232 | -7/Factory | Learned location of 2 exits from Proximity Caves 20300 | -7/Factory | Learned Hub_04(d) non-interactive machine intel 20358 | -7/Factory | Learned 2 Extension zone layouts 20448 | -7/Factory | Learned Hub_04(d) emergency access door positions 20565 | -7/Factory | Learned location of 2 exits from Lower Caves 20642 | -7/Factory | Entered Garrison 20642 | -7/Garrison | Accompanied by 12 allies 20695 | -7/Garrison | Identified exit to Factory 20695 | -7/Garrison | Discovered exit to Factory (range 43) 20695 | -7/Garrison | Discovered exit to Factory (range 66) 20695 | -7/Garrison | Discovered exit to Factory (range 44) 20695 | -7/Garrison | Discovered exit to Factory (range 55) 20738 | -7/Garrison | Triggered checkpoint 20817 | -7/Garrison | Garrison Relay disabled 20880 | -7/Garrison | Triggered checkpoint 20920 | -7/Garrison | Destroyed 7 combat bots 20940 | -7/Garrison | Triggered checkpoint 20944 | -7/Garrison | Triggered checkpoint 20979 | -7/Garrison | Lost 3 allies 21032 | -7/Garrison | Triggered checkpoint 21043 | -7/Garrison | Garrison Relay disabled 21086 | -7/Garrison | Triggered checkpoint 21396 | -7/Garrison | Triggered checkpoint 21427 | -7/Garrison | Garrison Relay disabled 21518 | -7/Garrison | Garrison Relay disabled 21672 | -7/Garrison | Hacker 4d assimilated hostile G-47 Trooper 21706 | -7/Garrison | Triggered checkpoint 21772 | -7/Garrison | Triggered checkpoint 21790 | -7/Garrison | Garrison Relay disabled 22049 | -7/Garrison | Entered Factory 22049 | -7/Factory | Accompanied by 13 allies 22356 | -7/Factory | Build established: Commander-Tank 22866 | -7/Factory | Build established: Commander-Skirmisher 23755 | -7/Factory | P-60 Hacker assimilated allied C6-DCQ(b) 23901 | -7/Factory | Discovered exit to Storage (range 12) 23997 | -7/Factory | Repaired Kinecellerator? 24545 | -7/Factory | Build established: Hacker-Tank 24574 | -7/Factory | Discovered exit to Factory (range 5) 24803 | -7/Factory | Fabricated Adv. Hacking Suite (x1) 25281 | -7/Factory | Fabricated Imp. Medium Treads (x2) 25364 | -7/Factory | Fabricated Imp. Heavy Machine Gun (x1) 25720 | -7/Factory | Fabricated Plasma Cutter (x2) 25830 | -7/Factory | Fabricated Adv. Hacking Suite (x1) 26089 | -7/Factory | Learned Hub_04(d) interactive machine intel 26143 | -7/Factory | Build established: Machinist-Tank 26163 | -7/Factory | Learned 4 Proximity Caves zone layouts 26229 | -7/Factory | Learned 2 Hub_04(d) zone layouts 26334 | -7/Factory | Learned location of 3 exits from Factory 26422 | -7/Factory | Loaded intel: 5 fabricator locations 26479 | -7/Factory | Learned 2 Lower Caves zone layouts 26783 | -7/Factory | Identified exit to Garrison 26785 | -7/Factory | Entered Garrison 27057 | -7/Garrison | Triggered checkpoint 27099 | -7/Garrison | Destroyed 8 combat bots 27244 | -7/Garrison | Phase Generator disabled 27356 | -7/Garrison | Triggered checkpoint 27358 | -7/Garrison | Triggered checkpoint 27461 | -7/Garrison | Identified exit to Factory 27474 | -7/Garrison | Triggered checkpoint 27601 | -7/Garrison | Triggered checkpoint 27631 | -7/Garrison | Garrison Relay disabled 27739 | -7/Garrison | Discovered exit to Factory (range 67) 27739 | -7/Garrison | Discovered exit to Factory (range 86) 27739 | -7/Garrison | Discovered exit to Factory (range 38) 27791 | -7/Garrison | Build established: Machinist-Gunner 27891 | -7/Garrison | Garrison Relay disabled 27957 | -7/Garrison | Garrison Relay disabled 28117 | -7/Garrison | Triggered checkpoint 28147 | -7/Garrison | Triggered checkpoint 28236 | -7/Garrison | Triggered checkpoint 28267 | -7/Garrison | Learned Factory security intel 28529 | -7/Garrison | Build established: Machinist-Tank 28719 | -7/Garrison | Triggered checkpoint 28795 | -7/Garrison | Garrison Relay disabled 28888 | -7/Garrison | Build established: Fabricator-Tank 28929 | -7/Garrison | Triggered checkpoint 29007 | -7/Garrison | Discovered exit to Factory (range 38) 29007 | -7/Garrison | Discovered exit to Factory (range 29) 29007 | -7/Garrison | Discovered exit to Factory (range 71) 29137 | -7/Garrison | Triggered checkpoint 29155 | -7/Garrison | Garrison Relay disabled 29265 | -7/Garrison | Entered Factory 29265 | -7/Factory | Accompanied by 1 ally 29353 | -7/Factory | Identified exit to DSF 29356 | -7/Factory | Entered DSF 29356 | -7/DSF | Accompanied by 1 ally 29406 | -7/DSF | Additional patrols routed to DSF 29479 | -7/DSF | Discovered exit to Factory (range 15) 29726 | -7/DSF | Sterilization system engaged 29746 | -7/DSF | Ambient heat levels rising (+10) 29761 | -7/DSF | Ambient heat levels rising (+10) 29776 | -7/DSF | Ambient heat levels rising (+10) 29780 | -7/DSF | Build established: Fabricator-Gunner 29791 | -7/DSF | Ambient heat levels rising (+10) 29806 | -7/DSF | Ambient heat levels rising (+10) 29821 | -7/DSF | Ambient heat levels rising (+10) 29836 | -7/DSF | Ambient heat levels rising (+10) 29851 | -7/DSF | Ambient heat levels rising (+10) 29852 | -7/DSF | Entered Factory 29852 | -6/Factory | Evolved 2 slots: Utility x2 29915 | -6/Factory | Allied Derelicts emerged from ambush trap array 30185 | -6/Factory | Build established: Fabricator-Tank 30202 | -6/Factory | First assault squad dispatched 30357 | -6/Factory | Lost 3 allies 30783 | -6/Factory | Fabricated P-60 Hacker? 30875 | -6/Factory | Fabricated P-60 Hacker? 31101 | -6/Factory | Fabricated Imp. Component Analysis Suite (x2) 31160 | -6/Factory | Fabricated Imp. Heavy Treads (x1) 31218 | -6/Factory | Fabricated Imp. Heavy Treads? 31348 | -6/Factory | Build established: Hacker-Gunner 31391 | -6/Factory | Repaired Particle Reactor 31530 | -6/Factory | Spotted B-75 Beast 31553 | -6/Factory | Destroyed B-75 Beast 31560 | -6/Factory | Fabricated P-60 Hacker? 31702 | -6/Factory | Identified exit to Factory 31702 | -6/Factory | Discovered exit to Factory (range 10) 31853 | -6/Factory | Hacker 5e assimilated hostile S-27 Virus 32575 | -6/Factory | Fabricated Adv. Hacking Suite (x1) 32629 | -6/Factory | Fabricated Armor Integrity Analyzer (x2) 32808 | -6/Factory | Cargo convoy interrupted 33026 | -6/Factory | Learned location of 2 exits from Lower Caves 33057 | -6/Factory | Identified exit to Lower Caves 33090 | -6/Factory | Learned Extension stockpile data 33091 | -6/Factory | Learned location of 2 exits from Upper Caves 33393 | -6/Factory | Build established: Fabricator-Tank 33614 | -6/Factory | Sucked down chute 33614 | -6/Factory | Entered Waste 33615 | -6/Waste | Met a frightened Derelict 33629 | -6/Waste | EMP discharged 33636 | -6/Waste | Spotted C-40 Crusher 33642 | -6/Waste | Allies destroyed C-40 Crusher 33652 | -6/Waste | Spotted C-40 Crusher 33668 | -6/Waste | Crushed by Compactor (1 part destroyed, 2 dropped) 33674 | -6/Waste | Crushed by Compactor (0 parts destroyed, 1 dropped) 33675 | -6/Waste | Destroyed C-40 Crusher 33729 | -6/Waste | EMP discharged 33729 | -6/Waste | Spotted C-40 Crusher 33736 | -6/Waste | Destroyed C-40 Crusher 33745 | -6/Waste | Spotted C-40 Crusher 33778 | -6/Waste | Destroyed C-40 Crusher 33821 | -6/Waste | Spotted C-40 Crusher 33829 | -6/Waste | EMP discharged 33830 | -6/Waste | Destroyed C-40 Crusher 33892 | -6/Waste | Identified exit to Factory 33892 | -6/Waste | Discovered exit to Factory (range 14) 33896 | -6/Waste | Build established: Fabricator-Gunner 33923 | -6/Waste | Entered Factory 34097 | -6/Factory | Fabricated O-24 Administrator? 34240 | -6/Factory | Fabricated P-60 Hacker (x2) 34309 | -6/Factory | Fabricated P-60 Hacker? 34319 | -6/Factory | Lost 3 allies 34347 | -6/Factory | Spotted B-75 Beast 34368 | -6/Factory | Destroyed B-75 Beast 34600 | -6/Factory | Build established: Hacker-Tank 34600 | -6/Factory | Cargo convoy interrupted 34693 | -6/Factory | Found Prototype Launcher 34699 | -6/Factory | Found Prototype Processor 34740 | -6/Factory | Identified Adv. Micro-nuke Launcher 34751 | -6/Factory | Found Prototype Processor 34984 | -6/Factory | Identified Spectral Analyzer (x2) 34989 | -6/Factory | Fabricated O-24 Administrator? 35434 | -6/Factory | Fabricated Adv. EM Disruption Field (x1) 35478 | -6/Factory | Fabricated System Restoration Module (x2) 35664 | -6/Factory | Fabricated Adv. Hacking Suite (x1) 35723 | -6/Factory | Fabricated O-24 Administrator? 36109 | -6/Factory | Learned 4 Lower Caves zone layouts 36181 | -6/Factory | Learned Extension garrison access intel 36216 | -6/Factory | Learned location of 1 exit from Hub_04(d) 36228 | -6/Factory | Learned location of Upper Caves (-5) 36249 | -6/Factory | Learned location of Upper Caves (-4) 36278 | -6/Factory | Learned Extension garrison access intel 36872 | -6/Factory | P-60 Hacker assimilated allied L-41 Fighter 37072 | -6/Factory | Identified exit to Garrison 37077 | -6/Factory | Learned 4 Proximity Caves zone layouts 37155 | -6/Factory | Learned location of 3 exits from Factory 37286 | -6/Factory | Learned Hub_04(d) security intel 37337 | -6/Factory | Learned location of 1 exit from Proximity Caves 37379 | -6/Factory | Learned location of 1 exit from Cetus 37450 | -6/Factory | Learned 2 Lower Caves zone layouts 37501 | -6/Factory | Learned location of 1 exit from Extension 37562 | -6/Factory | Loaded intel: 4 scanalyzer locations 37567 | -6/Factory | Garrison activated, responded to threat 37635 | -6/Factory | Entered Garrison 37635 | -6/Garrison | Accompanied by 4 allies 37636 | -6/Garrison | Identified exit to Factory 37705 | -6/Garrison | Triggered checkpoint 37726 | -6/Garrison | Garrison Relay disabled 37770 | -6/Garrison | Spotted B-75 Beast 37779 | -6/Garrison | Triggered checkpoint 37792 | -6/Garrison | Destroyed B-75 Beast 37795 | -6/Garrison | Triggered checkpoint 37938 | -6/Garrison | Destroyed 9 combat bots 37989 | -6/Garrison | Triggered checkpoint 38027 | -6/Garrison | Garrison Relay disabled 38169 | -6/Garrison | Triggered checkpoint 38679 | -6/Garrison | Triggered checkpoint 38723 | -6/Garrison | Garrison Relay disabled 38817 | -6/Garrison | Triggered checkpoint 38874 | -6/Garrison | Learned Factory security intel 38881 | -6/Garrison | Discovered exit to Factory (range 21) 38881 | -6/Garrison | Discovered exit to Factory (range 49) 38881 | -6/Garrison | Discovered exit to Factory (range 54) 38881 | -6/Garrison | Discovered exit to Factory (range 68) 38927 | -6/Garrison | Triggered checkpoint 39001 | -6/Garrison | Garrison Relay disabled 39378 | -6/Garrison | Garrison Relay disabled 39539 | -6/Garrison | Entered Factory 39539 | -6/Factory | Accompanied by 4 allies 39841 | -6/Factory | Adv. Hacking Suite fried by hacking feedback 40348 | -6/Factory | Discovered exit to Lower Caves (range 8) 40435 | -6/Factory | Garrison activated, responded to threat 40896 | -6/Factory | Fabricated O-24 Administrator (x1) 41221 | -6/Factory | Lost 3 allies 41462 | -6/Factory | Loaded intel: 26 terminal locations 41588 | -6/Factory | Loaded intel: 3 garrison access locations 41624 | -6/Factory | Fabricated M-28 Smith (x1) 41645 | -6/Factory | Learned 4 Lower Caves zone layouts 41682 | -6/Factory | Fabricated Adv. Transmission Jammer (x2) 41688 | -6/Factory | Learned location of 1 exit from Hub_04(d) 41852 | -6/Factory | Fabricated L-41 Fighter (x3) 41893 | -6/Factory | Fabricated P-60 Hacker? 42017 | -6/Factory | Fabricated X-67 Chaingunner (x2) 42038 | -6/Factory | Fabricated X-67 Chaingunner? 42040 | -6/Factory | Fabricated P-60 Hacker (x2) 42066 | -6/Factory | Fabricated X-67 Chaingunner (x2) 42092 | -6/Factory | Fabricated X-67 Chaingunner? 42218 | -6/Factory | Entered Lower Caves 42218 | -6/Lower Caves | Accompanied by 15 allies 42219 | -6/Lower Caves | Identified exit to Lower Caves 42224 | -6/Lower Caves | Met a Warlord Commander 42225 | -6/Lower Caves | Learned location of Warlord (-5) 42226 | -6/Lower Caves | Warlord Commander delivered Encrypted Comm Array 42226 | -6/Lower Caves | Found Unknown Device 42227 | -6/Lower Caves | Identified Encrypted Comm Array 42343 | -6/Lower Caves | Build established: Commander-Tank 42476 | -6/Lower Caves | Entered another Lower Caves area 42476 | -6/Lower Caves | Accompanied by 15 allies 42476 | -6/Lower Caves | Discovered exit to Factory (range 14) 42477 | -6/Lower Caves | Identified exit to Data Miner 42546 | -6/Lower Caves | Encountered a Warlord checkpoint 42800 | -6/Lower Caves | Entered Data Miner 42800 | -6/Data Miner | Accompanied by 15 allies 42802 | -6/Data Miner | Identified exit to Proximity Caves 42802 | -6/Data Miner | Discovered exit to Proximity Caves (range 6) 42832 | -6/Data Miner | Met Data Miner 42863 | -6/Data Miner | Learned location of Section 7 (-3) 42863 | -6/Data Miner | Acquired the access code to Warlord's prototype stash 42887 | -6/Data Miner | Received God Mode back door access code from Data Miner 42905 | -6/Data Miner | Data Conduit disabled 43080 | -6/Data Miner | Entered Proximity Caves 43080 | -5/Proximity Caves | Accompanied by 14 allies 43169 | -5/Proximity Caves | Spotter reported a threat 43566 | -5/Proximity Caves | Received a Behemoth hack from an annoying Tinkerer 43801 | -5/Proximity Caves | Entered Factory 43801 | -5/Factory | Accompanied by 13 allies 43801 | -5/Factory | Evolved 2 slots: Propulsion x2 43802 | -5/Factory | Identified exit to Factory 43802 | -5/Factory | Identified exit to Upper Caves 44177 | -5/Factory | Fabricated Adv. Phase Shifter (x2) 44238 | -5/Factory | Fabricated M-28 Smith? 44303 | -5/Factory | Lost 7 allies 44391 | -5/Factory | Fabricated Imp. Heavy Treads (x1) 44419 | -5/Factory | Discovered exit to Factory (range 16) 44483 | -5/Factory | Fabricated X-72 Disruptor (x2) 44541 | -5/Factory | Fabricated Adv. Hardlight Generator (x2) 44561 | -5/Factory | Build established: Hacker-Tank 44596 | -5/Factory | Fabricated Hvy. Reactive Plating (x1) 44657 | -5/Factory | Fabricated Adv. Hacking Suite (x1) 44720 | -5/Factory | P-70 Sage assimilated allied Disruptor 6a 44724 | -5/Factory | Fabricated P-60 Hacker? 44860 | -5/Factory | Fabricated D-63 Destroyer? 44882 | -5/Factory | Fabricated D-63 Destroyer? 45047 | -5/Factory | Entered Upper Caves 45047 | -5/Upper Caves | Accompanied by 7 allies 45048 | -5/Upper Caves | Identified exit to Upper Caves 45165 | -5/Upper Caves | Build established: Commander-Tank 45267 | -5/Upper Caves | Learned Factory stockpile data 45321 | -5/Upper Caves | Entered another Upper Caves area 45321 | -5/Upper Caves | Accompanied by 7 allies 45322 | -5/Upper Caves | Identified exit to Warlord 45637 | -5/Upper Caves | Found Imp. Powered Armor 45711 | -5/Upper Caves | Learned 12 Factory zone layouts 45841 | -5/Upper Caves | Attracted the attention of an 0b10 checkpoint 45932 | -5/Upper Caves | Entered Warlord 45932 | -5/Warlord | Accompanied by 6 allies 45934 | -5/Warlord | Build established: Machinist-Tank 46353 | -5/Warlord | Found Prototype Device 46392 | -5/Warlord | Identified Minesniffer Drone Bay 46464 | -5/Warlord | Met Warlord 46480 | -5/Warlord | Opened Warlord's prototype stash 46483 | -5/Warlord | Warlord's base attacked by MAIN.C 46489 | -5/Warlord | Found Prototype Reactor 46489 | -5/Warlord | Identified Vortex Chain Reactor 46495 | -5/Warlord | Found Prototype Processor 46518 | -5/Warlord | Identified Exp. Targeting Computer 46518 | -5/Warlord | Found Prototype Hackware 46526 | -5/Warlord | Identified Ghost Barrier 46527 | -5/Warlord | Found Prototype Processor 46664 | -5/Warlord | Found Prototype Launcher 46668 | -5/Warlord | Found Prototype Energy Gun 46671 | -5/Warlord | Found Prototype Energy Gun 46728 | -5/Warlord | Identified Vortex Rail (x2) 46734 | -5/Warlord | P-70 Sage assimilated allied OV-ROG(Y) 46772 | -5/Warlord | Identified Exp. Core Analyzer 46809 | -5/Warlord | Hacker 6a assimilated hostile B-74 Champion 46814 | -5/Warlord | Warlord forces counterattacked 46820 | -5/Warlord | Spotted Striker 46843 | -5/Warlord | Spotted Executioner 46848 | -5/Warlord | Destroyed Executioner 46850 | -5/Warlord | Spotted Striker 46854 | -5/Warlord | Destroyed Striker 46883 | -5/Warlord | Lost 6 allies 46887 | -5/Warlord | Spotted B-75 Beast 46901 | -5/Warlord | Identified Vortex Catalyst Activator 46903 | -5/Warlord | Spotted B-86 Titan 46906 | -5/Warlord | Destroyed Executioner 46922 | -5/Warlord | Identified exit to Proximity Caves 46922 | -5/Warlord | Discovered exit to Proximity Caves (range 14) 46983 | -5/Warlord | Spotted Striker 46983 | -5/Warlord | Spotted Striker 47023 | -5/Warlord | Lost 4 allies 47083 | -5/Warlord | Spotted Executioner 47083 | -5/Warlord | Spotted Striker 47083 | -5/Warlord | Spotted Executioner 47084 | -5/Warlord | P-70 Sage assimilated allied JQ-PE1(l) 47092 | -5/Warlord | Destroyed Executioner 47113 | -5/Warlord | Destroyed 9 combat bots 47117 | -5/Warlord | Entered Proximity Caves 47117 | -4/Proximity Caves | Accompanied by 1 ally 47146 | -4/Proximity Caves | Lost 4 allies 47590 | -4/Proximity Caves | Attracted the attention of an 0b10 checkpoint 47743 | -4/Proximity Caves | Entered Factory 47743 | -4/Factory | Accompanied by 1 ally 47743 | -4/Factory | Evolved 2 slots: Utility x2 47744 | -4/Factory | Identified exit to Research 48098 | -4/Factory | Build established: Hacker-Tank 48174 | -4/Factory | Identified exit to Upper Caves 48174 | -4/Factory | Identified exit to Armory 48458 | -4/Factory | Fabricated Y-64 Sentinel? 49421 | -4/Factory | Fabricated Quantum Capacitor (x2) 49698 | -4/Factory | Learned location of 2 exits from Upper Caves 49741 | -4/Factory | Destroyed 7 combat bots 49760 | -4/Factory | Learned Research interactive machine intel 49811 | -4/Factory | Learned Armory garrison access intel 49852 | -4/Factory | Learned location of 2 exits from Factory 49866 | -4/Factory | Cargo convoy interrupted 49905 | -4/Factory | Loaded intel: 114 trap records 49928 | -4/Factory | Found Prototype Device 49931 | -4/Factory | Found Prototype Hackware 49948 | -4/Factory | Identified Thermal Barrier 49951 | -4/Factory | Found Prototype Device 49955 | -4/Factory | Identified Exp. Focal Shield 49979 | -4/Factory | Identified Exp. Hacking Suite 50028 | -4/Factory | Loaded intel: 4 scanalyzer locations 50048 | -4/Factory | Found Prototype Device 50050 | -4/Factory | Found Exp. Focal Shield 50082 | -4/Factory | Entered Armory 50092 | -4/Armory | Identified Exp. Shield Generator 50594 | -4/Armory | Found Adv. Powered Armor 50598 | -4/Armory | Found Adv. Powered Armor 50601 | -4/Armory | Found Adv. Powered Armor 50985 | -4/Armory | Fabricated O-24 Administrator? 51081 | -4/Armory | Lost 3 allies 51170 | -4/Armory | Fabricated P-70 Sage? 51254 | -4/Armory | Discovered exit to Research (range 12) 51258 | -4/Armory | Sage 7a assimilated hostile Y-72 Warden 51325 | -4/Armory | Fabricated System Restoration Module (x2) 51480 | -4/Armory | Build established: Wizard-Tank 51514 | -4/Armory | Fabricated M-36 Artificer? 51533 | -4/Armory | Fabricated P-70 Sage? 51622 | -4/Armory | Fabricated I-47 Archangel? 51737 | -4/Armory | Fabricated L-61 Swordsman (x3) 51801 | -4/Armory | Fabricated Com. HERF Cannon? 51909 | -4/Armory | Fabricated L-61 Swordsman? 52014 | -4/Armory | Sage 7b assimilated hostile W-44 Eye 52031 | -4/Armory | Fabricated M-22 Extractor? 52083 | -4/Armory | Lost 6 allies 52152 | -4/Armory | Fabricated O-24 Administrator (x1) 52243 | -4/Armory | Spotted B-86 Titan 52245 | -4/Armory | Fabricated L-61 Swordsman? 52269 | -4/Armory | Sage 7b assimilated hostile B-86 Titan 52275 | -4/Armory | Fabricated System Restoration Module (x2) 52373 | -4/Armory | Fabricated L-61 Swordsman (x3) 52417 | -4/Armory | Sage 7c assimilated hostile Y-64 Sentinel 52431 | -4/Armory | Fabricated L-61 Swordsman? 52485 | -4/Armory | Fabricated M-36 Artificer (x1) 52540 | -4/Armory | Fabricated P-70 Sage? 52662 | -4/Armory | Fabricated Adv. Heavy Siege Treads (x1) 52692 | -4/Armory | Fabricated Adv. Heavy Siege Treads? 52729 | -4/Armory | Build established: Commander-Tank 52735 | -4/Armory | Fabricated Adv. Heavy Siege Treads (x1) 52802 | -4/Armory | Fabricated M-36 Artificer? 52803 | -4/Armory | Sage 7c assimilated hostile B-60 Warrior 52867 | -4/Armory | Found Fusion Bomb Launcher 52939 | -4/Armory | Identified exit to Lab 52939 | -4/Armory | Discovered exit to Lab (range 5) 52979 | -4/Armory | Entered Lab 52979 | -4/Lab | Accompanied by 23 allies 52979 | -4/Lab | Discovered exit to Research (range 9) 52999 | -4/Lab | Unable to decrypt terminal 53103 | -4/Lab | Detected for breach 53103 | -4/Lab | Disabled Active System Cloaker 53109 | -4/Lab | Confronted by A5 53119 | -4/Lab | Sage 7b assimilated hostile G-67 Veteran 53131 | -4/Lab | Allies destroyed A5 53134 | -4/Lab | Crushed by falling debris 53136 | -4/Lab | Found Exp. Hacking Suite 53143 | -4/Lab | Gained access to the hidden lab's interior 53186 | -4/Lab | Found Prototype Special Weapon 53188 | -4/Lab | Identified Gui. Remote Datajack 53212 | -4/Lab | Found Prototype Energy Cannon 53217 | -4/Lab | Identified Potential Cannon 53219 | -4/Lab | Found Prototype Energy Gun 53224 | -4/Lab | Found Prototype Protection 53228 | -4/Lab | Found Prototype Hackware 53230 | -4/Lab | Identified Exp. Powered Armor 53238 | -4/Lab | Identified Hyp. EM Gauss Rifle 53277 | -4/Lab | Identified Deep Network Scanner 53284 | -4/Lab | Found Alien Artifact 53297 | -4/Lab | Found Alien Artifact 53308 | -4/Lab | Found Alien Artifact 53318 | -4/Lab | Found Alien Artifact 53460 | -4/Lab | Entered Research 53460 | -3/Research | Accompanied by 23 allies 53460 | -3/Research | Evolved 2 slots: Utility x2 53461 | -3/Research | Loaded intel: 44 interactive machine locations 53504 | -3/Research | Identified exit to Quarantine 53504 | -3/Research | Identified exit to Research 53751 | -3/Research | Build established: Commander-Gunner 53786 | -3/Research | Identified Transdimensional Reconstructor 53786 | -3/Research | Identified Integrated Reactor 53786 | -3/Research | Identified Core Expander 53786 | -3/Research | Identified Core Reset Matrix 53786 | -3/Research | Installed Integrated Reactor, increased core energy generation (+10) 53788 | -3/Research | Installed Core Expander, added new Propulsion slot 53985 | -3/Research | Intercept squad dispatched 53998 | -3/Research | Spotted Tracker 54010 | -3/Research | Allies destroyed Tracker 54012 | -3/Research | Spotted Combat Programmer 54038 | -3/Research | Sage 7e assimilated hostile Y-72 Warden 54068 | -3/Research | Lost 5 allies 54169 | -3/Research | Spotted B-86 Titan 54182 | -3/Research | Destroyed B-86 Titan 54297 | -3/Research | Build established: Wizard-Gunner 54422 | -3/Research | Fabricated Exp. Cooling System (x1) 54496 | -3/Research | Fabricated Adv. Particle Accelerator (x1) 54554 | -3/Research | Fabricated Prc. Energy Filter (x1) 54639 | -3/Research | Sage 7b assimilated hostile Y-72 Warden 54905 | -3/Research | Fabricated System Restoration Module (x2) 54970 | -3/Research | Fabricated Exp. Hacking Suite (x1) 55061 | -3/Research | Fabricated Thermal Barrier (x1) 55101 | -3/Research | Fabricated M-22 Extractor? 55359 | -3/Research | Entered Quarantine 55359 | -3/Quarantine | Accompanied by 17 allies 55508 | -3/Quarantine | Destroyed 9 combat bots 55607 | -3/Quarantine | Found Alien Artifact 55608 | -3/Quarantine | Identified Terrabomb 55608 | -3/Quarantine | Used Terrabomb 55609 | -3/Quarantine | First assault squad dispatched 55646 | -3/Quarantine | Found Terrabomb 55664 | -3/Quarantine | Lost 3 allies 55772 | -3/Quarantine | Discovered exit to Research (range 3) 55774 | -3/Quarantine | Scanned by Researcher 55943 | -3/Quarantine | Spotted Fortress 55998 | -3/Quarantine | Destroyed Fortress 56011 | -3/Quarantine | Intercept squad dispatched 56018 | -3/Quarantine | Spotted Tracker 56034 | -3/Quarantine | Allies destroyed Tracker 56049 | -3/Quarantine | Spotted Combat Programmer 56058 | -3/Quarantine | Combat Programmer assimilated allied Warden 8a 56067 | -3/Quarantine | Combat Programmer assimilated allied Sentinel 7d 56070 | -3/Quarantine | Destroyed Combat Programmer 56081 | -3/Quarantine | Lost 6 allies 56129 | -3/Quarantine | Found Alien Artifact 56178 | -3/Quarantine | Found Alien Energy Cannon 56328 | -3/Quarantine | Identified Phase Redirector 56328 | -3/Quarantine | Identified Core Cannon 56548 | -3/Quarantine | Found Alien Slashing Weapon 56549 | -3/Quarantine | Identified Sigix Broadsword 56714 | -3/Quarantine | Found Alien Artifact 56714 | -3/Quarantine | Identified Phase Armor 56936 | -3/Quarantine | Found Alien Artifact 56984 | -3/Quarantine | Identified Subatomic Replicator 57073 | -3/Quarantine | Found Alien Reactor 57073 | -3/Quarantine | Identified Matter Drive 57189 | -3/Quarantine | Intercept squad dispatched 57198 | -3/Quarantine | Spotted Tracker 57203 | -3/Quarantine | Destroyed Tracker 57221 | -3/Quarantine | Spotted Combat Programmer 57229 | -3/Quarantine | Destroyed Combat Programmer 57327 | -3/Quarantine | Identified exit to Section 7 57327 | -3/Quarantine | Discovered exit to Section 7 (range 6) 57487 | -3/Quarantine | Entered Section 7 57597 | -3/Section 7 | Spotted S7 Guard 57604 | -3/Section 7 | Garrison activated, responded to threat 57605 | -3/Section 7 | Destroyed S7 Guard 57619 | -3/Section 7 | Found Alien Artifact 57679 | -3/Section 7 | Identified Core Physics Calibrator 57705 | -3/Section 7 | Found Alien Artifact 57941 | -3/Section 7 | Identified exit to Garrison 58054 | -3/Section 7 | Identified Integrated Dissipator 58054 | -3/Section 7 | Installed Integrated Dissipator, increased core heat dissipation (+20) 58078 | -3/Section 7 | Found Integrated Dissipator 58078 | -3/Section 7 | Installed Integrated Dissipator, increased core heat dissipation (+20) 58136 | -3/Section 7 | Intercept squad dispatched 58211 | -3/Section 7 | Spotted S7 Guard 58230 | -3/Section 7 | Destroyed S7 Guard 58240 | -3/Section 7 | Found Alien Artifact 58305 | -3/Section 7 | Identified Core Membrane 58306 | -3/Section 7 | Installed Core Membrane, gained immunity to corruption 58523 | -3/Section 7 | Found Prototype Device 58534 | -3/Section 7 | Identified Exp. ECM Suite 58602 | -3/Section 7 | Spotted B-86 Titan 58697 | -3/Section 7 | Destroyed B-86 Titan 58729 | -3/Section 7 | Found Integrated Reactor 58816 | -3/Section 7 | Found Alien Artifact 59066 | -3/Section 7 | Discovered exit to Research (range 11) 59280 | -3/Section 7 | Spotted Alpha 7 59320 | -3/Section 7 | Destroyed Alpha 7 59333 | -3/Section 7 | Spotted Alpha 7 59368 | -3/Section 7 | Destroyed Alpha 7 59500 | -3/Section 7 | Intercept squad dispatched 59506 | -3/Section 7 | Spotted Tracker 59513 | -3/Section 7 | Destroyed Tracker 59532 | -3/Section 7 | Spotted Combat Programmer 59552 | -3/Section 7 | Installed Integrated Reactor, increased core energy generation (+10) 59583 | -3/Section 7 | Spotted B-99 Colossus 59600 | -3/Section 7 | Destroyed B-99 Colossus 59670 | -3/Section 7 | Found Integrated Dissipator 59721 | -3/Section 7 | Identified Microwarp Drive 59725 | -3/Section 7 | Installed Integrated Dissipator, increased core heat dissipation (+20) 59736 | -3/Section 7 | Found Alien Artifact 59739 | -3/Section 7 | Found Alien Artifact 59748 | -3/Section 7 | Found Alien Artifact 59799 | -3/Section 7 | Scanned by Researcher 59814 | -3/Section 7 | Found Integrated Reactor 59814 | -3/Section 7 | Installed Integrated Reactor, increased core energy generation (+10) 59817 | -3/Section 7 | Found Integrated Reactor 59817 | -3/Section 7 | Installed Integrated Reactor, increased core energy generation (+10) 59968 | -3/Section 7 | Spotted Executioner 59968 | -3/Section 7 | Spotted Executioner 59972 | -3/Section 7 | Destroyed Executioner 59975 | -3/Section 7 | Destroyed Executioner 60082 | -3/Section 7 | Spotted Striker 60082 | -3/Section 7 | Spotted Striker 60094 | -3/Section 7 | Destroyed Striker 60096 | -3/Section 7 | Destroyed Striker 60200 | -3/Section 7 | Spotted Striker 60200 | -3/Section 7 | Spotted Striker 60207 | -3/Section 7 | Destroyed Striker 60209 | -3/Section 7 | Destroyed Striker 60229 | -3/Section 7 | Found Alien Energy Cannon 60259 | -3/Section 7 | Found Alien Energy Gun 60261 | -3/Section 7 | Found Alien Energy Gun 60265 | -3/Section 7 | Found Alien Energy Gun 60374 | -3/Section 7 | Found Terrabomb 60382 | -3/Section 7 | Used Terrabomb 60383 | -3/Section 7 | Used Terrabomb 60390 | -3/Section 7 | Found Terrabomb 60390 | -3/Section 7 | Used Terrabomb 60393 | -3/Section 7 | Found Terrabomb 60407 | -3/Section 7 | Found Alien Artifact 60412 | -3/Section 7 | Found Transdimensional Reconstructor 60415 | -3/Section 7 | Found Transdimensional Reconstructor 60418 | -3/Section 7 | Found Transdimensional Reconstructor 60437 | -3/Section 7 | Spotted Executioner 60439 | -3/Section 7 | Spotted Executioner 60443 | -3/Section 7 | Destroyed Executioner 60445 | -3/Section 7 | Destroyed Executioner 60569 | -3/Section 7 | Identified Sigix Shearcannon 60736 | -3/Section 7 | Intercept squad dispatched 60738 | -3/Section 7 | Spotted Tracker 60738 | -3/Section 7 | Spotted Tracker 60740 | -3/Section 7 | Spotted Combat Programmer 60745 | -3/Section 7 | Identified LRC Insulator 60745 | -3/Section 7 | Identified LRC Energy Well 60745 | -3/Section 7 | Identified Hpw. Transdimensional Reconstructor 60747 | -3/Section 7 | Destroyed Combat Programmer 60748 | -3/Section 7 | Destroyed Tracker 60748 | -3/Section 7 | Destroyed Combat Programmer 60752 | -3/Section 7 | Destroyed Tracker 60765 | -3/Section 7 | Spotted Combat Programmer 60770 | -3/Section 7 | Destroyed Combat Programmer 60773 | -3/Section 7 | Garrison activated, responded to threat 60805 | -3/Section 7 | Destroyed 9 combat bots 60815 | -3/Section 7 | Installed LRC Insulator, gained EM resistance (25) 60818 | -3/Section 7 | Used Subatomic Replicator to replicate LRC Energy Well 60819 | -3/Section 7 | Installed LRC Energy Well, increased energy storage capacity (+250) 60822 | -3/Section 7 | Installed LRC Energy Well, increased energy storage capacity (+250) 60861 | -3/Section 7 | Entered Garrison 60939 | -3/Garrison | Triggered checkpoint 60970 | -3/Garrison | Garrison Relay disabled 60998 | -3/Garrison | Garrison Relay disabled 61054 | -3/Garrison | Spotted B-86 Titan 61059 | -3/Garrison | Triggered checkpoint 61065 | -3/Garrison | Destroyed B-86 Titan 61085 | -3/Garrison | Triggered checkpoint 61085 | -3/Garrison | Triggered checkpoint 61111 | -3/Garrison | Destroyed 7 combat bots 61159 | -3/Garrison | Discovered exit to Research (range 8) 61229 | -3/Garrison | Triggered checkpoint 61306 | -3/Garrison | Discovered exit to Research (range 64) 61306 | -3/Garrison | Discovered exit to Research (range 37) 61306 | -3/Garrison | Discovered exit to Research (range 38) 61351 | -3/Garrison | Garrison Relay disabled 61352 | -3/Garrison | Triggered checkpoint 61426 | -3/Garrison | Found embedded Infiltrators 61543 | -3/Garrison | Triggered checkpoint 61567 | -3/Garrison | Garrison Relay disabled 61678 | -3/Garrison | Spotted B-90 Cyclops 61685 | -3/Garrison | Destroyed B-90 Cyclops 61687 | -3/Garrison | Spotted B-75 Beast 61692 | -3/Garrison | Destroyed B-75 Beast 61696 | -3/Garrison | Rewired B-75 Beast 61698 | -3/Garrison | Rewired B-75 Beast 61755 | -3/Garrison | Triggered checkpoint 61762 | -3/Garrison | Garrison Relay disabled 61832 | -3/Garrison | Entered Research 61832 | -2/Research | Accompanied by 4 allies 61832 | -2/Research | Warlord forces began assault on 0b10 61832 | -2/Research | Evolved 2 slots (calibrated): Power x1, -Propulsion x1, Utility x3, -Weapon x1 61833 | -2/Research | Identified exit to Testing 61848 | -2/Research | Identified LRC Matter Compressor 61848 | -2/Research | Identified Sigix Sheargun (x3) 61848 | -2/Research | Installed LRC Matter Compressor, increased matter storage capacity (+125) 61857 | -2/Research | Distinguished unit "The Professionals" dispatched to help 61857 | -2/Research | Distinguished unit "Knights of the Pentagonal Table" dispatched to help 61942 | -2/Research | Research machine network offline 61957 | -2/Research | Used Terrabomb 62113 | -2/Research | Spotted Executioner 62130 | -2/Research | Lost 4 allies 62131 | -2/Research | Build established: Wizard-Mutant 62298 | -2/Research | Discovered exit to Testing (range 10) 62431 | -2/Research | Spotted Striker 62437 | -2/Research | Destroyed Striker 62444 | -2/Research | Spotted Executioner 62446 | -2/Research | Spotted Executioner 62468 | -2/Research | Spotted B-90 Cyclops 62489 | -2/Research | Destroyed B-90 Cyclops 62492 | -2/Research | Lost 9 allies 62496 | -2/Research | Destroyed Executioner 62549 | -2/Research | Spotted Striker 62557 | -2/Research | Destroyed Striker 62596 | -2/Research | Borebot progress halted 62610 | -2/Research | Identified exit to Access 62610 | -2/Research | Discovered exit to Access (range 15) 62626 | -2/Research | Spotted B-90 Cyclops 62639 | -2/Research | Destroyed B-90 Cyclops 62688 | -2/Research | Spotted Executioner 62694 | -2/Research | Spotted Striker 62695 | -2/Research | Allies destroyed Executioner 62702 | -2/Research | Destroyed Striker 62900 | -2/Research | Spotted B-90 Cyclops 62907 | -2/Research | Destroyed B-90 Cyclops 63132 | -2/Research | Found Adv. EM Disruption Field 63284 | -2/Research | Found Prototype Energy Gun 63286 | -2/Research | Spotted Executioner 63287 | -2/Research | Spotted Executioner 63288 | -2/Research | Spotted Striker 63291 | -2/Research | Destroyed Executioner 63294 | -2/Research | Destroyed Executioner 63294 | -2/Research | Spotted Striker 63297 | -2/Research | Destroyed Striker 63301 | -2/Research | Discovered exit to Access (range 16) 63330 | -2/Research | Destroyed 10 combat bots 63333 | -2/Research | Lost 4 allies 63400 | -2/Research | Met up with Warlord 63408 | -2/Research | Met DD-05H 63432 | -2/Research | Spotted Tracker 63433 | -2/Research | Spotted Tracker 63455 | -2/Research | Spotted Combat Programmer 63464 | -2/Research | Destroyed Combat Programmer 63492 | -2/Research | Lost 4 allies 63523 | -2/Research | Discovered exit to Access (range 15) 63581 | -2/Research | Entered Testing 63711 | -2/Testing | Identified Immobilizer 63713 | -2/Testing | Found Prototype Energy Cannon 63824 | -2/Testing | Identified Disintegrator 63878 | -2/Testing | Protovariant out of control (PH-GABPOIFEYM) 63878 | -2/Testing | Unleashed a protovariant (PH-GABPOIFEYM) 63913 | -2/Testing | Warped through subspace 64027 | -2/Testing | Found Prototype Device 64033 | -2/Testing | Identified Exp. Actuator Array 64167 | -2/Testing | Spotted Striker 64167 | -2/Testing | Spotted Striker 64376 | -2/Testing | Found Prototype Launcher 64441 | -2/Testing | Identified Containment Facilitator 64614 | -2/Testing | Found Prototype Protection 64614 | -2/Testing | Identified Med. Regenerative Plating 64618 | -2/Testing | Found Prototype Protection 64688 | -2/Testing | Intercept squad dispatched 64691 | -2/Testing | Spotted Tracker 64692 | -2/Testing | Spotted Tracker 64696 | -2/Testing | Destroyed Tracker 64697 | -2/Testing | Destroyed Tracker 64699 | -2/Testing | Spotted Combat Programmer 64700 | -2/Testing | Destroyed Combat Programmer 64701 | -2/Testing | Spotted Combat Programmer 64701 | -2/Testing | Destroyed Combat Programmer 64715 | -2/Testing | Identified SHELL Armor 64782 | -2/Testing | Garrison activated, responded to threat 64833 | -2/Testing | Discovered exit to Access (range 9) 64848 | -2/Testing | Identified exit to Garrison 64933 | -2/Testing | Fabricated Singularity Reactor (x1) 65044 | -2/Testing | Fabricated Adv. Particle Accelerator (x1) 65228 | -2/Testing | Found Prototype Energy Gun 65229 | -2/Testing | Identified Tachyon Dispersion Ray 65359 | -2/Testing | Found Quantum Capacitor 65526 | -2/Testing | Entered Garrison 65570 | -2/Garrison | Triggered checkpoint 65581 | -2/Garrison | Garrison Relay disabled 65647 | -2/Garrison | Spotted B-90 Cyclops 65663 | -2/Garrison | Destroyed B-90 Cyclops 65666 | -2/Garrison | Triggered checkpoint 65708 | -2/Garrison | Triggered checkpoint 65712 | -2/Garrison | Destroyed 13 combat bots 65760 | -2/Garrison | Triggered checkpoint 65777 | -2/Garrison | Garrison Relay disabled 65806 | -2/Garrison | Garrison Relay disabled 65857 | -2/Garrison | Discovered exit to Access (range 9) 66031 | -2/Garrison | Discovered exit to Access (range 11) 66050 | -2/Garrison | Triggered checkpoint 66090 | -2/Garrison | Garrison Relay disabled 66108 | -2/Garrison | Discovered exit to Access (range 80) 66108 | -2/Garrison | Discovered exit to Access (range 16) 66108 | -2/Garrison | Discovered exit to Access (range 49) 66108 | -2/Garrison | Learned Access security intel 66258 | -2/Garrison | Triggered checkpoint 66258 | -2/Garrison | Triggered checkpoint 66334 | -2/Garrison | Garrison Relay disabled 66344 | -2/Garrison | Triggered checkpoint 66378 | -2/Garrison | Found embedded Infiltrators 66456 | -2/Garrison | Phase Generator disabled 66732 | -2/Garrison | Entered Access 66732 | -1/Access | Accompanied by 4 allies 66732 | -1/Access | Evolved 1 slot: Utility x1 66747 | -1/Access | Identified exit to Command 66866 | -1/Access | Lost 9 allies 67090 | -1/Access | Identified exit to Surface 67090 | -1/Access | Discovered exit to Surface (range 13) 67259 | -1/Access | Intercept squad dispatched 67283 | -1/Access | Spotted Tracker 67284 | -1/Access | Spotted Tracker 67291 | -1/Access | Destroyed Tracker 67297 | -1/Access | Destroyed Tracker 67316 | -1/Access | Spotted Combat Programmer 67317 | -1/Access | Destroyed Combat Programmer 67335 | -1/Access | Spotted Combat Programmer 67339 | -1/Access | Destroyed Combat Programmer 67512 | -1/Access | Entered Command 67762 | -1/Command | First assault squad dispatched 67778 | -1/Command | Disengaged cave seal 67778 | -1/Command | Derelicts emerged from the dark tunnel 67778 | -1/Command | Welcomed Warlord to Command 67917 | -1/Command | Disengaged cave seal 68058 | -1/Command | Destroyed Combat Programmer 68062 | -1/Command | Spotted M Guard 68062 | -1/Command | Spotted Combat Programmer 68064 | -1/Command | Spotted M Guard 68065 | -1/Command | Destroyed Combat Programmer 68072 | -1/Command | Destroyed M Guard 68072 | -1/Command | All MAIN.C guards destroyed 68079 | -1/Command | Warlord commented on Warlord statues 68102 | -1/Command | 0b10 Conduit disabled 68103 | -1/Command | Met MAIN.C 68114 | -1/Command | Destroyed MAIN.C Shell 68115 | -1/Command | MAIN.C activated Command garrisons 68130 | -1/Command | Lost 4 allies 68141 | -1/Command | Destroyed MAIN.C 68142 | -1/Command | Failed to warp due to unstable space 68143 | -1/Command | Failed to warp due to unstable space 68144 | -1/Command | Failed to warp due to unstable space 68151 | *** | Establishing Free Derelict Territories! Last Messages --------------- 68128_ Containment Facilitator expended. 68128_ MAIN.C engulfed in stasis bubble. 68128_ Engulfed in stasis bubble. 68132_ Quantum Shear penetrates MAIN.C. 68133_ MAIN.C stasis bubble strength at 193. 68134_ Quantum Shear penetrates MAIN.C. 68141_ MAIN.C: "I hope you know you're still going to DIE HERE WITH ME!" 68141_ MAIN.C destroyed. 68142_ Warp failed due to unstable space. 68147_ Ended siege mode. 68147_ Stasis bubble strength at 162. 68148_ Stasis bubble strength at 124. 68149_ Stasis bubble strength at 86. 68150_ Stasis bubble strength at 48. Warlord: Victory! Sure there's still lots to do, but without MAIN.C at the helm 0b10 doesn't stand a chance. We've got this... Map ----- +----------------------------------------------------+ | ?????????????????????????????????????????????????? | | ?????????????????????????????????????????????????? | | ?????????????????????????????????????????????????? | | ?????????????????????????????????????????????????? | | ?????????????????????????????????????????????????? | | ?????????????????????????????????????????????????? | | ?????????????????????????????????????????????????? | | ?????????????????????????????????????????????????? | | ?????????????????????????????????????????????????? | | ?????????????????????????????????????????????????? | | ?????????????????????????????????????????????????? | | ?????????????????????????????????????????????????? | | ?????????????????????????????????????????????????? | | ?????????????????????????????????????????????????? | | ?????????????????????????????????????????????????? | | ?????????????????????????????????????????????????? | | ?????????????????????????????????????????????????? | | ?????????????????????????????????????????????????? | | ?????????????????????????????????????????????????? | | ?????????????????????????????????????????????????? | | ?????????????????????????????????????????????????? | | ????????????????####################?????????????? | | ??????????????""""""" "" #?????????????? | | ??????????????"" % #?????????????? | | ????????????????""" % #????????????## | | ??????????????????""""" @ / | | ??????????????" " " % / | | ???????????????" """"" /W | | ??????????????????"""" #####??######## | | ???????????????????"" !!* #?????????????? | | ??????????????????? =%[! #?????????????? | | ?????????????????? !$= ""#?????????????? | | ?????????????????""" % """"""#?????????????? | | ???????????????? """"""??????????????? | | ???????????????? """""????????????????? | | ????????????????? " " ??????????????????? | | ????????????????? " " " ??????????????????? | | ???????????????? " " " "????????????????????? | | ?????????????????? " ? ? ????????????????????? | | ????????????????????? ? ?? ????????????????????? | | ?????????????????????????"???????????????????????? | | ?????????????????????????????????????????????????? | | ?????????????????????????????????????????????????? | | ?????????????????????????????????????????????????? | | ?????????????????????????????????????????????????? | | ?????????????????????????????????????????????????? | | ?????????????????????????????????????????????????? | | ?????????????????????????????????????????????????? | | ?????????????????????????????????????????????????? | | ?????????????????????????????????????????????????? | +----------------------------------------------------+ Best States ------------- Heat Dissipation 124 Coolant Potential 120 Energy Generation 115 Energy Capacity 2200 Matter Stores 425 Matter Capacity 425 Sight Range 16 Terrain Scan Range 20 Terrain Scan Density 210 Jamming Range 16 Cloak Strength 3 Armor Coverage 1200 Resistance: KI 75 Resistance: TH 85 Resistance: EX 35 Resistance: EM 85 Resistance: I 35 Resistance: S 35 Resistance: P 35 Point Defense Rating 240 Weapon Cycling 15 Evasion (%) 40 Target Analysis 8 Core Analysis 8 Armor Integrity Analysis 40 Recoil Reduction 6 Matter Filtering 30 Energy Filtering 50 Particle Charging 50 Kinecelleration 40 Salvage Targeting 2 Offensive Hacking 91 Defensive Hacking 32 Authchip Count 9 Item Schematics ----------------- Imp. Medium Armor Plating | -8/Materials | Scanalyzed Imp. Datajack | -8/Materials | Extracted Weight Redist. System | -8/Materials | Extracted Flail | -8/Materials | Extracted Cld. Ion Engine | -8/Materials | Extracted Particle Gun | -8/Materials | Extracted Lgt. Treads | -8/Materials | Extracted Imp. Shield Generator | -8/Materials | Scanalyzed Structural Scanner | -8/Materials | Scanalyzed Plasma Cutter | -8/Materials | Scanalyzed Gauss Rifle | -8/Materials | Scanalyzed EM Pulse Cannon | -8/Materials | Extracted Adv. Targeting Computer | -8/Materials | Extracted Hrd. Light Armor Plating | -8/Materials | Extracted Com. Wheel | -8/Materials | Extracted Propulsion Shielding | -8/Materials | Extracted Beam Cannon | -8/Materials | Extracted Imp. Thermal Shield | -7/Factory | Hacked Med. Reactive Plating | -7/Factory | Scanalyzed Shock Absorption System | -7/Factory | Extracted Adv. Weight Redist. System | -7/Factory | Extracted Greatsword | -7/Factory | Extracted Imp. Heavy Machine Gun | -7/Factory | Hacked Imp. Hardlight Generator | -7/Factory | Hacked Adv. Hacking Suite | -7/Factory | Hacked Imp. Medium Treads | -7/Factory | Hacked Adv. Cooling System | -7/Factory | Hacked System Restoration Module | -7/Factory | Scanalyzed Targeting Computer | -7/Factory | Extracted Hrd. Medium Armor Plating | -7/Factory | Extracted Armor Integrity Analyzer | -7/Factory | Scanalyzed Rocket Array | -7/Factory | Scanalyzed Imp. Melee Analysis Suite | -7/Factory | Extracted Cargo Storage Unit | -7/Factory | Extracted Spear | -7/Factory | Extracted Pulse Rifle | -7/Factory | Extracted System Shield | -7/Factory | Scanalyzed Transmission Jammer | -7/Factory | Extracted Mni. Assault Cannon | -7/Factory | Extracted Imp. Terrain Scanner | -7/Factory | Extracted Disposable Heat Sink | -7/Factory | Extracted Energy Filter | -7/Factory | Extracted Hvy. Missile Launcher | -7/Factory | Extracted Adv. Assault Cannon | -7/Factory | Extracted Missile Launcher | -7/Factory | Extracted Arm. Wheel | -7/Factory | Extracted Deuterium Engine | -7/Factory | Extracted Imp. Treads | -7/Factory | Extracted Cesium-ion Thruster | -7/Factory | Extracted Dynamic Insulation System | -7/Factory | Extracted Com. Battery | -7/Factory | Extracted Med. Storage Unit | -7/Factory | Extracted Mic. Nuclear Core | -7/Factory | Extracted Imp. Heavy Treads | -6/Factory | Hacked Hpw. Tractor Beam | -6/Factory | Extracted ECM Suite | -6/Factory | Extracted Hardlight Generator | -6/Factory | Extracted Cloaking Device | -6/Factory | Extracted Titanium Leg | -6/Factory | Extracted Melee Analysis Suite | -6/Factory | Extracted Imp. Weapon Shielding | -6/Factory | Extracted Adv. Terrain Scanner | -6/Factory | Extracted Hyp. Gauss Rifle | -6/Factory | Extracted Enh. Optical Array | -6/Factory | Extracted Com. Particle Reactor | -6/Factory | Scanalyzed Lgt. Angular Momentum Engine | -6/Factory | Extracted Sml. Storage Unit | -6/Factory | Extracted Arc Projector | -6/Factory | Extracted Lrg. Storage Unit | -6/Factory | Extracted Adv. Signal Interpreter | -6/Factory | Extracted Hvy. Machine Gun | -6/Factory | Extracted Gatling Laser | -6/Factory | Extracted Imp. System Shield | -6/Factory | Scanalyzed Adv. EM Disruption Field | -6/Factory | Scanalyzed Adv. Micro-nuke Launcher | -6/Factory | Scanalyzed Imp. Plasma Cutter | -6/Factory | Scanalyzed Imp. Kinecellerator | -6/Factory | Scanalyzed Hvy. Pick | -6/Factory | Extracted Drone Bay | -6/Factory | Extracted Adv. Melee Analysis Suite | -6/Factory | Extracted Xenon Bombardment Thruster | -6/Factory | Extracted Hvy. Plasma Cannon | -6/Factory | Extracted Hvy. Reactive Plating | -6/Factory | Hacked Energy Well | -6/Factory | Extracted Nuclear Pulse Thruster | -6/Factory | Extracted Com. Matter Pod | -6/Factory | Extracted Imp. Trap Scanner | -6/Factory | Extracted Adv. Transmission Jammer | -6/Factory | Hacked Imp. Component Analysis Suite | -6/Factory | Scanalyzed Matter Filter | -6/Factory | Scanalyzed Shock Maul | -6/Factory | Scanalyzed Flak Gun | -6/Factory | Extracted Adv. Target Analyzer | -6/Factory | Hacked Combat Drone Bay | -6/Data Miner | Free Lgt. Regenerative Plating | -6/Data Miner | Free Adv. Power Amplifier | -6/Data Miner | Free Imp. Remote Force Field | -6/Data Miner | Free Antigrav Array | -6/Data Miner | Free Phase Gun | -6/Data Miner | Free Adv. Medium Treads | -6/Data Miner | Free Lance | -6/Data Miner | Free Dispersion Rifle | -6/Data Miner | Free Impulse Thruster | -6/Data Miner | Free Hvy. Gatling Laser | -6/Data Miner | Free Imp. Energy Well | -6/Data Miner | Free Cld. Gravmag System | -6/Data Miner | Free Adv. Hardlight Generator | -5/Factory | Hacked Lrn. Tractor Beam | -5/Factory | Scanalyzed Adv. Phase Shifter | -5/Factory | Scanalyzed Imp. Target Analyzer | -5/Factory | Scanalyzed Imp. Light Armor Plating | -4/Factory | Extracted Quantum Capacitor | -4/Factory | Hacked Adv. Heavy Siege Treads | -4/Factory | Hacked Com. HERF Cannon | -4/Armory | Hacked Exp. Hacking Suite | -4/Armory | Hacked Exp. System Shield | -4/Armory | Hacked Adv. Particle Accelerator | -3/Research | Hacked Singularity Reactor | -3/Research | Hacked Exp. Core Analyzer | -3/Research | Scanalyzed Imp. Armor Integrity Analyzer | -3/Research | Scanalyzed Exp. Cooling System | -3/Research | Hacked Exp. Coolant Injector | -3/Research | Scanalyzed Thermal Barrier | -3/Research | Scanalyzed Phase Shifter | -3/Research | Extracted Focal Shield | -3/Research | Extracted Quantum Rifle | -3/Research | Extracted Prc. Energy Filter | -3/Research | Hacked Lrn. Phase Cannon | -3/Quarantine | Archive Hellfire Missile Launcher | -3/Quarantine | Archive Electron Diverter | -3/Quarantine | Archive Exp. Myomer Leg | -3/Quarantine | Archive Adv. Myomer Leg | -3/Quarantine | Archive Adv. Variable Charge Gun | -3/Quarantine | Archive Proton Burst Cannon | -3/Quarantine | Archive Adv. Energy Well | -3/Quarantine | Archive Exp. Energy Well | -3/Quarantine | Archive Enh. Force Rifle | -3/Quarantine | Archive Cld. Field Propulsion Drive | -3/Quarantine | Archive Exp. Targeting Computer | -3/Quarantine | Archive Graviton Reactor | -3/Quarantine | Archive Cld. Phase Gun | -3/Quarantine | Archive Lgt. Quantum Reactor | -3/Quarantine | Hacked Nova Cannon | -3/Quarantine | Hacked Enh. Quantum Rifle | -3/Quarantine | Hacked Imp. Thermal Defense Suite | -3/Section 7 | Archive Cld. Antigrav System | -3/Section 7 | Archive Adv. Dynamic Insulation System | -3/Section 7 | Archive Lgt. Antimatter Cannon | -3/Section 7 | Archive Tiamat Missile Launcher | -3/Section 7 | Archive Adv. Powered Armor | -2/Research | Scanalyzed Exp. Focal Shield | -2/Research | Scanalyzed Adv. System Shield | -2/Research | Extracted Plasma Sword | -2/Testing | Archive Hvy. Proton Cannon | -2/Testing | Archive Tactical Coordination Suite | -2/Testing | Scanalyzed Vibroblade | -2/Testing | Scanalyzed Robot Schematics ------------------ P-60 Hacker | -7/Factory | Hacked O-24 Administrator | -6/Factory | Hacked L-41 Fighter | -6/Factory | Hacked M-28 Smith | -6/Factory | Hacked X-67 Chaingunner | -6/Factory | Hacked G-50 Soldier | -6/Data Miner | Free M-22 Extractor | -6/Data Miner | Free A-15 Conveyor | -6/Data Miner | Free X-72 Disruptor | -5/Factory | Hacked D-63 Destroyer | -5/Factory | Hacked P-70 Sage | -4/Factory | Hacked L-61 Swordsman | -4/Factory | Hacked I-47 Archangel | -4/Armory | Hacked M-36 Artificer | -4/Armory | Hacked E-15 Imp | -4/Armory | Hacked B-60 Warrior | -4/Armory | Hacked S-43 Plague | -3/Quarantine | Archive T-07 Excavator | -3/Quarantine | Archive Y-72 Warden | -3/Quarantine | Archive C-55 Analyst | -3/Quarantine | Archive A-27 Freighter | -3/Quarantine | Archive B-74 Champion | -3/Quarantine | Hacked Fabricated ------------ Imp. Hardlight Generator | x2 | -7/Factory Imp. Heavy Machine Gun | x1 | -7/Factory Imp. Thermal Shield | x2 | -7/Factory Imp. Heavy Machine Gun | x1 | -7/Factory | Authchip P-60 Hacker | x2 | -7/Factory | Authchip P-60 Hacker | x2 | -7/Factory | Authchip Adv. Hacking Suite | x1 | -7/Factory Imp. Medium Treads | x2 | -7/Factory Imp. Heavy Machine Gun | x1 | -7/Factory Plasma Cutter | x2 | -7/Factory Adv. Hacking Suite | x1 | -7/Factory P-60 Hacker | x2 | -6/Factory | Authchip P-60 Hacker | x2 | -6/Factory | Authchip Imp. Component Analysis Suite | x2 | -6/Factory | Preloaded Imp. Heavy Treads | x1 | -6/Factory | Authchip Imp. Heavy Treads | x1 | -6/Factory P-60 Hacker | x2 | -6/Factory | Authchip Adv. Hacking Suite | x1 | -6/Factory | Authchip Armor Integrity Analyzer | x2 | -6/Factory | Authchip O-24 Administrator | x1 | -6/Factory | Authchip P-60 Hacker | x2 | -6/Factory | Authchip P-60 Hacker | x2 | -6/Factory | Authchip O-24 Administrator | x1 | -6/Factory Adv. EM Disruption Field | x1 | -6/Factory | Preloaded System Restoration Module | x2 | -6/Factory Adv. Hacking Suite | x1 | -6/Factory O-24 Administrator | x1 | -6/Factory O-24 Administrator | x1 | -6/Factory | Authchip M-28 Smith | x1 | -6/Factory Adv. Transmission Jammer | x2 | -6/Factory L-41 Fighter | x3 | -6/Factory | Authchip P-60 Hacker | x2 | -6/Factory | Authchip X-67 Chaingunner | x2 | -6/Factory | Authchip X-67 Chaingunner | x2 | -6/Factory | Authchip P-60 Hacker | x2 | -6/Factory | Authchip X-67 Chaingunner | x2 | -6/Factory | Authchip X-67 Chaingunner | x2 | -6/Factory | Authchip Adv. Phase Shifter | x2 | -5/Factory | Preloaded M-28 Smith | x1 | -5/Factory Imp. Heavy Treads | x1 | -5/Factory X-72 Disruptor | x2 | -5/Factory Adv. Hardlight Generator | x2 | -5/Factory Hvy. Reactive Plating | x1 | -5/Factory Adv. Hacking Suite | x1 | -5/Factory P-60 Hacker | x2 | -5/Factory D-63 Destroyer | x1 | -5/Factory D-63 Destroyer | x1 | -5/Factory Y-64 Sentinel | x2 | -4/Factory | Preloaded Quantum Capacitor | x2 | -4/Factory O-24 Administrator | x1 | -4/Armory P-70 Sage | x2 | -4/Armory System Restoration Module | x2 | -4/Armory M-36 Artificer | x1 | -4/Armory P-70 Sage | x2 | -4/Armory I-47 Archangel | x1 | -4/Armory L-61 Swordsman | x3 | -4/Armory Com. HERF Cannon | x1 | -4/Armory L-61 Swordsman | x3 | -4/Armory M-22 Extractor | x1 | -4/Armory O-24 Administrator | x1 | -4/Armory L-61 Swordsman | x3 | -4/Armory System Restoration Module | x2 | -4/Armory L-61 Swordsman | x3 | -4/Armory L-61 Swordsman | x3 | -4/Armory M-36 Artificer | x1 | -4/Armory P-70 Sage | x2 | -4/Armory Adv. Heavy Siege Treads | x1 | -4/Armory Adv. Heavy Siege Treads | x1 | -4/Armory Adv. Heavy Siege Treads | x1 | -4/Armory M-36 Artificer | x1 | -4/Armory Exp. Cooling System | x1 | -3/Research Adv. Particle Accelerator | x1 | -3/Research Prc. Energy Filter | x1 | -3/Research System Restoration Module | x2 | -3/Research Exp. Hacking Suite | x1 | -3/Research Thermal Barrier | x1 | -3/Research M-22 Extractor | x1 | -3/Research Singularity Reactor | x1 | -2/Testing Adv. Particle Accelerator | x1 | -2/Testing Alien Tech Used ----------------- Integrated Reactor Core Expander Terrabomb Sigix Broadsword Phase Armor Matter Drive Integrated Dissipator Core Membrane Microwarp Drive Sigix Shearcannon LRC Insulator Subatomic Replicator LRC Energy Well Core Physics Calibrator LRC Matter Compressor Sigix Sheargun Transdimensional Reconstructor Core Cannon High-powered Transdimensional Reconstructor Phase Redirector Achievements -------------- None Challenges ------------ None Game ------ Seed FlightSuspensionSuperbattery Manual? 0 Play Time 13:40:36 Cumulative 530.7 hours Start 2024.10.15 @ 18:04:22 End 2024.10.27 @ 21:32:41 Sessions 29 Manual Loads 0 Difficulty Explorer Special Mode None Game No. 77 Rogue 6 Adventurer 6 Explorer 65 Win Type 7 Total 36 Types 13/7/2/5/1/1/1/4/2 Lore% 86 Gallery% 86 Achievement% 90 Wizard Run 0 Options --------- Layout 1 ASCII 0 Keyboard 0 Movement Mouse Keybinds 0 Fullscreen 1 Font 24/Smallcaps Map View 50x35 Zoom Use 0% Tactical HUD 1 Map Filters NONE Filters NONE Steam 1 RUN: 210614c7-7512-45a5-b606-011feabbdd37